Workbook

Sheet Risk Summary
C3: FY25 | D3: FY25 | E3: FY26 | F3: FY26 | G3: FY27 | H3: FY27 | I3: FY28 | J3: FY28 | L3: =D3 -> FY25 | M3: =F3 -> FY26 | N3: =H3 -> FY27 | O3: =I3 -> FY28
C4: Forecast | D4: Modeled | E4: Forecast | F4: Modeled | G4: Forecast | H4: Modeled | I4: Forecast | J4: Modeled | L4: Delta | M4: Delta | N4: Delta | O4: Delta
B5: Expense
B6: Columbia Generating Station | C6: =IF(CategoryColumn="","",VLOOKUP(CategoryColumn,ProForma,MATCH(YearRow,ProFormaYears,0)+1,FALSE)) -> 381842.341 | D6: =CGS!D4 ->  | E6: =IF(CategoryColumn="","",VLOOKUP(CategoryColumn,ProForma,MATCH(YearRow,ProFormaYears,0)+1,FALSE)) -> 348985.046 | F6: =CGS!E4 ->  | G6: =IF(CategoryColumn="","",VLOOKUP(CategoryColumn,ProForma,MATCH(YearRow,ProFormaYears,0)+1,FALSE)) -> 413666.166 | H6: =CGS!F4 ->  | I6: 380973.514 | J6: =CGS!G4 ->  | L6: =IF(COUNT(C6:D6)>0,D6-C6,"") ->  | M6: =IF(COUNT(E6:F6)>0,F6-E6,"") ->  | N6: =IF(COUNT(G6:H6)>0,H6-G6,"") ->  | O6: =IF(COUNT(I6:J6)>0,J6-I6,"") -> 
B7: Bureau Of Reclamation | C7: =IF(CategoryColumn="","",VLOOKUP(CategoryColumn,ProForma,MATCH(YearRow,ProFormaYears,0)+1,FALSE)) -> 180760 | D7: ='Corps & Bureau O&M'!D21 ->  | E7: 195235.0001 | F7: ='Corps & Bureau O&M'!F21 ->  | G7: 206763 | H7: ='Corps & Bureau O&M'!H21 ->  | I7: 208089.0001 | J7: ='Corps & Bureau O&M'!J21 ->  | L7: =IF(COUNT(C7:D7)>0,D7-C7,"") ->  | M7: =IF(COUNT(E7:F7)>0,F7-E7,"") ->  | N7: =IF(COUNT(G7:H7)>0,H7-G7,"") -> 
B8: Corps of Engineers | C8: =IF(CategoryColumn="","",VLOOKUP(CategoryColumn,ProForma,MATCH(YearRow,ProFormaYears,0)+1,FALSE)) -> 278292.03 | D8: ='Corps & Bureau O&M'!D5 ->  | E8: 292351 | F8: ='Corps & Bureau O&M'!F5 ->  | G8: 316276 | H8: ='Corps & Bureau O&M'!H5 ->  | I8: 341040.0001 | J8: ='Corps & Bureau O&M'!J5 -> 
B9: Conservation Purchases | C9: =IF(CategoryColumn="","",VLOOKUP(CategoryColumn,ProForma,MATCH(YearRow,ProFormaYears,0)+1,FALSE)) -> 69027.249 | D9: =_xll.RiskPert(C9*0.9,C9,C9*1.05) ->  | E9: 65384.524 | F9: =_xll.RiskPert(E9*0.9,E9,E9*1.05) ->  | G9: 65384.524 | H9: =_xll.RiskPert(G9*0.9,G9,G9*1.05) ->  | I9: 86512.69899 | J9: =_xll.RiskPert(I9*0.9,I9,I9*1.05) -> 
B10: Low Income Weatherization & Tribal | C10: =IF(CategoryColumn="","",VLOOKUP(CategoryColumn,ProForma,MATCH(YearRow,ProFormaYears,0)+1,FALSE)) -> 6005.00001 | D10: =_xll.RiskPert(C10*0.95,C10,C10*1.05) ->  | E10: 6005.00001 | F10: =_xll.RiskPert(E10*0.95,E10,E10*1.05) ->  | G10: 6005.00001 | H10: =_xll.RiskPert(G10*0.95,G10,G10*1.05) ->  | I10: 6005.00001 | J10: =_xll.RiskPert(I10*0.95,I10,I10*1.05) -> 
B11: 3rd Party GTA Wheeling | C11: =IF(CategoryColumn="","",VLOOKUP(CategoryColumn,ProForma,MATCH(YearRow,ProFormaYears,0)+1,FALSE)) -> 92597.799 | D11: =_xll.RiskPert(C11*0.96,C11,C11*1.02) ->  | E11: 92597.8 | F11: =_xll.RiskPert(E11*0.96,E11,E11*1.02) ->  | G11: 94644.30001 | H11: =_xll.RiskPert(G11*0.96,G11,G11*1.03) ->  | I11: 96736 | J11: =_xll.RiskPert(I11*0.96,I11,I11*1.03) -> 
B12: PS - 3rd Party Trans & Ancillary Svcs | C12: 3299.99999 | D12: =_xll.RiskPert(C12,C12,C12*1.05) ->  | E12: =IF(CategoryColumn="","",VLOOKUP(CategoryColumn,ProForma,MATCH(YearRow,ProFormaYears,0)+1,FALSE)) -> 3299.99999 | F12: =_xll.RiskPert(E12,E12,E12*1.05^2) ->  | G12: 3299.99999 | H12: =_xll.RiskPert(G12,G12,G12*1.05^3) ->  | I12: 3299.99999 | J12: =_xll.RiskPert(I12,I12,I12*1.05^3) -> 
B13: Fish & Wildlife | C13: 264691.4023 | D13: ='F&W Expense'!D6 ->  | E13: 275484.4044 | F13: ='F&W Expense'!F6 ->  | G13: 282484.0094 | H13: ='F&W Expense'!H6 ->  | I13: 289505.0212 | J13: ='F&W Expense'!J6 ->  | L13: =IF(COUNT(C13:D13)>0,D13-C13,"") ->  | M13: =IF(COUNT(E13:F13)>0,F13-E13,"") ->  | N13: =IF(COUNT(G13:H13)>0,H13-G13,"") -> 
B14: USF&W Lower Snake Hatcheries | C14: 32934.829 | D14: ='F&W Expense'!D24 ->  | E14: 33776.71299 | F14: ='F&W Expense'!F24 ->  | G14: 34706.83699 | H14: ='F&W Expense'!H24 ->  | I14: 35668.56 | J14: ='F&W Expense'!J24 ->  | L14: =IF(COUNT(C14:D14)>0,D14-C14,"") ->  | M14: =IF(COUNT(E14:F14)>0,F14-E14,"") ->  | N14: =IF(COUNT(G14:H14)>0,H14-G14,"") -> 
B15: Non-Federal Interest Expense | C15: 216672.0989 | D15: =_xll.RiskNormal(C15,1700) ->  | E15: 254601.423 | F15: =_xll.RiskNormal(E15,2200) ->  | G15: 260748.629 | H15: =_xll.RiskNormal(G15,3800) ->  | I15: 264382.017 | J15: =_xll.RiskNormal(I15,3800) ->  | L15: =IF(COUNT(C15:D15)>0,D15-C15,"") ->  | M15: =IF(COUNT(E15:F15)>0,F15-E15,"") ->  | N15: =IF(COUNT(G15:H15)>0,H15-G15,"") -> 
B16: Interest Income | C16: -32748.03108 | D16: =_xll.RiskUniform(C16,0) ->  | E16: -40116.0166 | F16: =_xll.RiskUniform(E16,0) ->  | G16: -40348.07067 | H16: =_xll.RiskUniform(G16,0) ->  | I16: -41962.12502 | J16: =_xll.RiskUniform(I16,0) -> 
B18: Base Expenses Delta | C18: Decreases Net Revenue | L18: =SUM(L6:L16) ->  | M18: =SUM(M6:M16) ->  | N18: =SUM(N6:N16) ->  | O18: =SUM(O6:O16) -> 
B19: Expense Slice True-up | C19: Decreases Net Revenue | L19: =(L18*Slice0*-1) ->  | M19: =(M18*Slice1*-1) ->  | N19: =(N18*Slice2*-1) ->  | O19: =(O18*Slice3*-1) -> 
B21: Revenue Delta | L21: =-L18-L19 ->  | M21: =-M18-M19 -> 
L23: Slice0 | M23: Slice1 | N23: Slice2 | O23: Slice3
L24: 0.266 | M24: 0.1175 | N24: =Slice1 -> 0.1175 | O24: =Slice1 -> 0.1175

Sheet RiskRGCGSR26C11 (hidden)
A33: Del X | B33: Del Y | E33: X1 | F33: Y1
A34: 291056.5338 | B34: 0.09 | E34: 288867.2056 | F34: 0.03
A35: 308900.8965 | B35: 0.09 | E35: 290113.3756 | F35: 0.03
A36: 288028.2669 | B36: 0.09 | E36: 291359.5457 | F36: 0.04
A37: 299978.7151 | B37: 0.09 | E37: 292605.7157 | F37: 0.07
A38: 311950.4482 | B38: 0.09 | E38: 293851.8857 | F38: 0.05
E39: 295098.0558 | F39: 0.08
E40: 296344.2258 | F40: 0.08
E41: 297590.3959 | F41: 0.08
E42: 298836.5659 | F42: 0.08
E43: 300082.7359 | F43: 0.07
E44: 301328.906 | F44: 0.08
E45: 302575.076 | F45: 0.07
E46: 303821.2461 | F46: 0.06
E47: 305067.4161 | F47: 0.04
E48: 306313.5861 | F48: 0.05
E49: 307559.7562 | F49: 0.03
E50: 308805.9262 | F50: 0.02
E51: 310052.0963 | F51: 0.02
E52: 311298.2663 | F52: 0.01
E53: 312544.4363 | F53: 0.01
E54: 313790.6064 | F54: 0
B2501: XFill1 | C2501: ="CGS Total O&M / FY14" -> CGS Total O&M / FY14 | D2501: XLine1 | E2501: ="CGS Total O&M / FY14" -> CGS Total O&M / FY14
B2502: 288867.2056 | C2502: =0 -> 0 | D2502: 288867.2056 | E2502: 0
B2503: 288867.2056 | C2503: =$F$34 -> 0.03 | D2503: 288867.2056 | E2503: 0
B2504: 288966.8992 | C2504: 0.03 | D2504: 288867.2056 | E2504: =$F$34 -> 0.03
B2505: 289066.5928 | C2505: 0.03 | D2505: 290113.3756 | E2505: =$F$34 -> 0.03
B2506: 289166.2864 | C2506: 0.03 | D2506: 290113.3756 | E2506: 0
B2507: 289265.98 | C2507: 0.03 | D2507: 290113.3756 | E2507: =$F$35 -> 0.03
B2508: 289365.6736 | C2508: 0.03 | D2508: 291359.5457 | E2508: =$F$35 -> 0.03
B2509: 289465.3672 | C2509: 0.03 | D2509: 291359.5457 | E2509: 0
B2510: 289565.0608 | C2510: 0.03 | D2510: 291359.5457 | E2510: =$F$36 -> 0.04
B2511: 289664.7544 | C2511: 0.03 | D2511: 292605.7157 | E2511: =$F$36 -> 0.04
B2512: 289764.448 | C2512: 0.03 | D2512: 292605.7157 | E2512: 0
B2513: 289864.1416 | C2513: 0.03 | D2513: 292605.7157 | E2513: =$F$37 -> 0.07
B2514: 289963.8352 | C2514: 0.03 | D2514: 293851.8857 | E2514: =$F$37 -> 0.07
B2515: 290063.5288 | C2515: 0.03 | D2515: 293851.8857 | E2515: 0
B2516: 290113.3756 | C2516: 0.03 | D2516: 293851.8857 | E2516: =$F$38 -> 0.05
B2517: 290113.3756 | C2517: 0 | D2517: 295098.0558 | E2517: =$F$38 -> 0.05
B2518: 290113.3756 | C2518: =0 -> 0 | D2518: 295098.0558 | E2518: 0
B2519: 290113.3756 | C2519: =$F$35 -> 0.03 | D2519: 295098.0558 | E2519: =$F$39 -> 0.08
B2520: 290213.0692 | C2520: 0.03 | D2520: 296344.2258 | E2520: =$F$39 -> 0.08
B2521: 290312.7628 | C2521: 0.03 | D2521: 296344.2258 | E2521: 0
B2522: 290412.4564 | C2522: 0.03 | D2522: 296344.2258 | E2522: =$F$40 -> 0.08
B2523: 290512.15 | C2523: 0.03 | D2523: 297590.3959 | E2523: =$F$40 -> 0.08
B2524: 290611.8436 | C2524: 0.03 | D2524: 297590.3959 | E2524: 0
B2525: 290711.5372 | C2525: 0.03 | D2525: 297590.3959 | E2525: =$F$41 -> 0.08
B2526: 290811.2308 | C2526: 0.03 | D2526: 298836.5659 | E2526: =$F$41 -> 0.08
B2527: 290910.9244 | C2527: 0.03 | D2527: 298836.5659 | E2527: 0
B2528: 291010.618 | C2528: 0.03 | D2528: 298836.5659 | E2528: =$F$42 -> 0.08
B2529: 291110.3117 | C2529: 0.03 | D2529: 300082.7359 | E2529: =$F$42 -> 0.08
B2530: 291210.0053 | C2530: 0.03 | D2530: 300082.7359 | E2530: 0
B2531: 291309.6989 | C2531: 0.03 | D2531: 300082.7359 | E2531: =$F$43 -> 0.07
B2532: 291359.5457 | C2532: 0.03 | D2532: 301328.906 | E2532: =$F$43 -> 0.07
B2533: 291359.5457 | C2533: 0 | D2533: 301328.906 | E2533: 0
B2534: 291359.5457 | C2534: =0 -> 0 | D2534: 301328.906 | E2534: =$F$44 -> 0.08
B2535: 291359.5457 | C2535: =$F$36 -> 0.04 | D2535: 302575.076 | E2535: =$F$44 -> 0.08
B2536: 291459.2393 | C2536: 0.04 | D2536: 302575.076 | E2536: 0
B2537: 291558.9329 | C2537: 0.04 | D2537: 302575.076 | E2537: =$F$45 -> 0.07
B2538: 291658.6265 | C2538: 0.04 | D2538: 303821.2461 | E2538: =$F$45 -> 0.07
B2539: 291758.3201 | C2539: 0.04 | D2539: 303821.2461 | E2539: 0
B2540: 291858.0137 | C2540: 0.04 | D2540: 303821.2461 | E2540: =$F$46 -> 0.06
B2541: 291957.7073 | C2541: 0.04 | D2541: 305067.4161 | E2541: =$F$46 -> 0.06
B2542: 292057.4009 | C2542: 0.04 | D2542: 305067.4161 | E2542: 0
B2543: 292157.0945 | C2543: 0.04 | D2543: 305067.4161 | E2543: =$F$47 -> 0.04
B2544: 292256.7881 | C2544: 0.04 | D2544: 306313.5861 | E2544: =$F$47 -> 0.04
B2545: 292356.4817 | C2545: 0.04 | D2545: 306313.5861 | E2545: 0
B2546: 292456.1753 | C2546: 0.04 | D2546: 306313.5861 | E2546: =$F$48 -> 0.05
B2547: 292555.8689 | C2547: 0.04 | D2547: 307559.7562 | E2547: =$F$48 -> 0.05
B2548: 292605.7157 | C2548: 0.04 | D2548: 307559.7562 | E2548: 0
B2549: 292605.7157 | C2549: 0 | D2549: 307559.7562 | E2549: =$F$49 -> 0.03
B2550: 292605.7157 | C2550: =0 -> 0 | D2550: 308805.9262 | E2550: =$F$49 -> 0.03
B2551: 292605.7157 | C2551: =$F$37 -> 0.07 | D2551: 308805.9262 | E2551: 0
B2552: 292705.4093 | C2552: 0.07 | D2552: 308805.9262 | E2552: =$F$50 -> 0.02
B2553: 292805.1029 | C2553: 0.07 | D2553: 310052.0963 | E2553: =$F$50 -> 0.02
B2554: 292904.7965 | C2554: 0.07 | D2554: 310052.0963 | E2554: 0
B2555: 293004.4901 | C2555: 0.07 | D2555: 310052.0963 | E2555: =$F$51 -> 0.02
B2556: 293104.1837 | C2556: 0.07 | D2556: 311298.2663 | E2556: =$F$51 -> 0.02
B2557: 293203.8773 | C2557: 0.07 | D2557: 311298.2663 | E2557: 0
B2558: 293303.5709 | C2558: 0.07 | D2558: 311298.2663 | E2558: =$F$52 -> 0.01
B2559: 293403.2645 | C2559: 0.07 | D2559: 312544.4363 | E2559: =$F$52 -> 0.01
B2560: 293502.9581 | C2560: 0.07 | D2560: 312544.4363 | E2560: 0
B2561: 293602.6517 | C2561: 0.07 | D2561: 312544.4363 | E2561: =$F$53 -> 0.01
B2562: 293702.3453 | C2562: 0.07 | D2562: 313790.6064 | E2562: =$F$53 -> 0.01
B2563: 293802.0389 | C2563: 0.07 | D2563: 313790.6064 | E2563: 0
B2564: 293851.8857 | C2564: 0.07 | D2564: 313790.6064 | E2564: =$F$54 -> 0
B2565: 293851.8857 | C2565: 0 | E2565: =$F$54 -> 0
B2566: 293851.8857 | C2566: =0 -> 0 | E2566: 0
B2567: 293851.8857 | C2567: =$F$38 -> 0.05
B2568: 293951.5793 | C2568: 0.05
B2569: 294051.2729 | C2569: 0.05
B2570: 294150.9665 | C2570: 0.05
B2571: 294250.6602 | C2571: 0.05
B2572: 294350.3538 | C2572: 0.05
B2573: 294450.0474 | C2573: 0.05
B2574: 294549.741 | C2574: 0.05
B2575: 294649.4346 | C2575: 0.05
B2576: 294749.1282 | C2576: 0.05
B2577: 294848.8218 | C2577: 0.05
B2578: 294948.5154 | C2578: 0.05
B2579: 295048.209 | C2579: 0.05
B2580: 295098.0558 | C2580: 0.05
B2581: 295098.0558 | C2581: 0
B2582: 295098.0558 | C2582: =0 -> 0
B2583: 295098.0558 | C2583: =$F$39 -> 0.08
B2584: 295197.7494 | C2584: 0.08
B2585: 295297.443 | C2585: 0.08
B2586: 295397.1366 | C2586: 0.08
B2587: 295496.8302 | C2587: 0.08
B2588: 295596.5238 | C2588: 0.08
B2589: 295696.2174 | C2589: 0.08
B2590: 295795.911 | C2590: 0.08
B2591: 295895.6046 | C2591: 0.08
B2592: 295995.2982 | C2592: 0.08
B2593: 296094.9918 | C2593: 0.08
B2594: 296194.6854 | C2594: 0.08
B2595: 296294.379 | C2595: 0.08
B2596: 296344.2258 | C2596: 0.08
B2597: 296344.2258 | C2597: 0
B2598: 296344.2258 | C2598: =0 -> 0
B2599: 296344.2258 | C2599: =$F$40 -> 0.08
B2600: 296443.9194 | C2600: 0.08
B2601: 296543.613 | C2601: 0.08
B2602: 296643.3066 | C2602: 0.08
B2603: 296743.0002 | C2603: 0.08
B2604: 296842.6938 | C2604: 0.08
B2605: 296942.3874 | C2605: 0.08
B2606: 297042.081 | C2606: 0.08
B2607: 297141.7746 | C2607: 0.08
B2608: 297241.4682 | C2608: 0.08
B2609: 297341.1619 | C2609: 0.08
B2610: 297440.8555 | C2610: 0.08
B2611: 297540.5491 | C2611: 0.08
B2612: 297590.3959 | C2612: 0.08
B2613: 297590.3959 | C2613: 0
B2614: 297590.3959 | C2614: =0 -> 0
B2615: 297590.3959 | C2615: =$F$41 -> 0.08
B2616: 297690.0895 | C2616: 0.08
B2617: 297789.7831 | C2617: 0.08
B2618: 297889.4767 | C2618: 0.08
B2619: 297989.1703 | C2619: 0.08
B2620: 298088.8639 | C2620: 0.08
B2621: 298188.5575 | C2621: 0.08
B2622: 298288.2511 | C2622: 0.08
B2623: 298387.9447 | C2623: 0.08
B2624: 298487.6383 | C2624: 0.08
B2625: 298587.3319 | C2625: 0.08
B2626: 298687.0255 | C2626: 0.08
B2627: 298786.7191 | C2627: 0.08
B2628: 298836.5659 | C2628: 0.08
B2629: 298836.5659 | C2629: 0
B2630: 298836.5659 | C2630: =0 -> 0
B2631: 298836.5659 | C2631: =$F$42 -> 0.08
B2632: 298936.2595 | C2632: 0.08
B2633: 299035.9531 | C2633: 0.08
B2634: 299135.6467 | C2634: 0.08
B2635: 299235.3403 | C2635: 0.08
B2636: 299335.0339 | C2636: 0.08
B2637: 299434.7275 | C2637: 0.08
B2638: 299534.4211 | C2638: 0.08
B2639: 299634.1147 | C2639: 0.08
B2640: 299733.8083 | C2640: 0.08
B2641: 299833.5019 | C2641: 0.08
B2642: 299933.1955 | C2642: 0.08
B2643: 300032.8891 | C2643: 0.08
B2644: 300082.7359 | C2644: 0.08
B2645: 300082.7359 | C2645: 0
B2646: 300082.7359 | C2646: =0 -> 0
B2647: 300082.7359 | C2647: =$F$43 -> 0.07
B2648: 300182.4295 | C2648: 0.07
B2649: 300282.1231 | C2649: 0.07
B2650: 300381.8167 | C2650: 0.07
B2651: 300481.5104 | C2651: 0.07
B2652: 300581.204 | C2652: 0.07
B2653: 300680.8976 | C2653: 0.07
B2654: 300780.5912 | C2654: 0.07
B2655: 300880.2848 | C2655: 0.07
B2656: 300979.9784 | C2656: 0.07
B2657: 301079.672 | C2657: 0.07
B2658: 301179.3656 | C2658: 0.07
B2659: 301279.0592 | C2659: 0.07
B2660: 301328.906 | C2660: 0.07
B2661: 301328.906 | C2661: 0
B2662: 301328.906 | C2662: =0 -> 0
B2663: 301328.906 | C2663: =$F$44 -> 0.08
B2664: 301428.5996 | C2664: 0.08
B2665: 301528.2932 | C2665: 0.08
B2666: 301627.9868 | C2666: 0.08
B2667: 301727.6804 | C2667: 0.08
B2668: 301827.374 | C2668: 0.08
B2669: 301927.0676 | C2669: 0.08
B2670: 302026.7612 | C2670: 0.08
B2671: 302126.4548 | C2671: 0.08
B2672: 302226.1484 | C2672: 0.08
B2673: 302325.842 | C2673: 0.08
B2674: 302425.5356 | C2674: 0.08
B2675: 302525.2292 | C2675: 0.08
B2676: 302575.076 | C2676: 0.08
B2677: 302575.076 | C2677: 0
B2678: 302575.076 | C2678: =0 -> 0
... 143 more rows

Sheet CGS
B2: ($000) | D2: @Risk
D3: FY25 | E3: FY26 | F3: FY27 | G3: FY28 | H3: =E3&" through "&G3 -> FY26 through FY28
A4: CGS | C4: CGS Total O&M | D4: =D5+D15 ->  | E4: =_xll.RiskOutput("CGS Total O&M / FY14")+(E5+E15) ->  | F4: =_xll.RiskOutput("CGS Total O&M / FY15")+(F5+F15) ->  | G4: =_xll.RiskOutput("CGS Total O&M / FY15")+(G5+G15) ->  | H4: =_xll.RiskOutput("CGS Total O&M / FY14 and FY 15")+(E4+F4+G4) -> 
B5: Pert | C5: CGS Base O&M | D5: =_xll.RiskPert(D8,D10,D12) ->  | E5: =_xll.RiskPert(E8,E10,E12) ->  | F5: =_xll.RiskPert(F8,F10,F12) ->  | G5: =_xll.RiskPert(G8,G10,G12) -> 
C6: Rates Values | D6: ='Risk Summary'!C6 -> 381842.341 | E6: ='Risk Summary'!E6 -> 348985.046 | F6: ='Risk Summary'!G6 -> 413666.166 | G6: ='Risk Summary'!I6 -> 380973.514
C7: Min percent of forecast | D7: 0.96 | E7: 0.96 | F7: 0.96 | G7: 0.96
C8: Min | D8: =(D$6-D$16)*(D7) -> 363111.8457 | E8: =(E$6-E$16)*(E7) -> 331392 | F8: =(F$6-F$16)*(F7) -> 393336 | G8: =(G$6-G$16)*(G7) -> 361800
C9: Expected percent of forecast | D9: 1 | E9: 1 | F9: 1 | G9: 1
C10: Expected | D10: =(D$6-D$16)*(D9) -> 378241.506 | E10: =(E$6-E$16)*(E9) -> 345200 | F10: =(F$6-F$16)*(F9) -> 409725 | G10: =(G$6-G$16)*(G9) -> 376875
C11: Max Percent of forecast | D11: 1.06 | E11: 1.06 | F11: 1.06 | G11: 1.06
C12: Max | D12: =(D$6-D$16)*(D11) -> 400935.9963 | E12: =(E$6-E$16)*(E11) -> 365912 | F12: =(F$6-F$16)*(F11) -> 434308.5 | G12: =(G$6-G$16)*(G11) -> 399487.5
B15: Normal | C15: NEIL Premium | D15: =_xll.RiskNormal(D16+D17,D18) ->  | E15: =_xll.RiskNormal(E16+E17,E18) ->  | F15: =_xll.RiskNormal(F16+F17,F18) ->  | G15: =_xll.RiskNormal(G16+G17,G18) -> 
C16: Base Value | D16: 3600.834997 | E16: 3785.04599 | F16: 3941.16599 | G16: 4098.51396
C17: EV Credit | D17: =-AVERAGE(F22:F28)/1000 -> -2532.169286 | E17: =D17 -> -2532.169286 | F17: =E17 -> -2532.169286 | G17: -2532.169286
C18: Credit StDev | D18: =STDEV(F22:F28)/1000 -> 1248.780292 | E18: =D18 -> 1248.780292 | F18: 1248.780292 | G18: 1248.780292
D21: Primary distr. | E21: Secondary distr. | F21: Total
C22: 2023/paid in 2024 | D22: 1384688 | E22: 440669 | F22: 1825357
C23: 2022/paid in 2023 | D23: 686033 | E23: 229765 | F23: 915798
C24: 2021/paid in 2022 | D24: 2795304 | E24: 948000 | F24: 3743304
C25: 2020/paid in 2021 | D25: 1863973 | E25: 671119 | F25: 2535092
C26: 2019/paid in 2020 | D26: 3342201 | E26: 1240093 | F26: 4582295
C27: 2018/paid in 2019 | D27: 1377030 | E27: 427869 | F27: 1804899
C28: 2017/paid in 2018 | D28: 1532765 | E28: 785675 | F28: 2318440

Sheet Corps & Bureau O&M
C2: FY25 | D2: =C2 -> FY25 | E2: FY26 | F2: FY26 | G2: FY27 | H2: FY27 | I2: FY28 | J2: FY28
C3: Input | D3: @risk | E3: Input | F3: @risk | G3: Input | H3: @risk | I3: Input | J3: @risk
D4: CORPOM-1 | F4: CORPOM-1 | H4: CORPOM-2 | J4: CORPOM-2
A5: CORPS O&M | C5: ='Risk Summary'!C8 -> 278292.03 | D5: =D37+(D40+D45)+D51+D56+D62 ->  | E5: ='Risk Summary'!E8 -> 292351 | F5: =F37+(F40+F45)+F51+F56+F62 ->  | G5: ='Risk Summary'!G8 -> 316276 | H5: =H37+(H40+H45)+H51+H56+H62 ->  | I5: ='Risk Summary'!I8 -> 341040.0001 | J5: =J37+(J40+J45)+J51+J56+J62 -> 
A6: Fish Passage
A7: = Base O&M | B7: Deterministic | D7: =D37 -> 278292.03 | F7: =F37 -> 292351 | H7: =H37 -> 316276 | J7: =J37 -> 341040.0001
A9: + Added Security costs if event occurs | B9: RiskDiscrete | D9: =D40 ->  | F9: =F40 ->  | H9: =H40 ->  | J9: =J40 -> 
A11: + Added Fish Environmental Compliance costs if event occurs | B11: RiskDiscrete | D11: =D45 ->  | F11: =F45 ->  | H11: =H45 ->  | J11: =J45 -> 
A13: - Non-Routine Extraordinary Maintenance Costs Reduction | B13: RiskDiscrete | D13: =D51 ->  | F13: =F51 ->  | H13: =H51 ->  | J13: =J51 -> 
A15: + Catastrophic Event Cost | B15: RiskDiscrete | D15: =D56 ->  | F15: =F56 ->  | H15: =H56 ->  | J15: =J56 -> 
A17: + Additional System Needs Costs | B17: RiskDiscrete | D17: =D62 ->  | F17: =F62 ->  | H17: =H62 ->  | J17: =J62 -> 
D20: BUROM-1 | F20: BUROM-1 | H20: BUROM-2 | J20: BUROM-2
A21: BUREAU O&M | C21: ='Risk Summary'!C7 -> 180760 | D21: =D67+(D70+D73)+D79+D90 ->  | E21: ='Risk Summary'!E7 -> 195235.0001 | F21: =F67+(F70+F73)+F79+F90 ->  | G21: ='Risk Summary'!G7 -> 206763 | H21: =H67+(H70+H73)+H79+H90 ->  | I21: ='Risk Summary'!I7 -> 208089.0001 | J21: =J67+(J70+J73)+J79+J90 -> 
A23: = Base O&M | B23: RiskPert | D23: =D67 -> 180760 | F23: =F67 -> 195235.0001 | H23: =H67 -> 206763 | J23: =J67 -> 208089.0001
A25: + Added Security costs if event occurs | B25: RiskDiscrete | D25: =D70 ->  | F25: =F70 ->  | H25: =H70 ->  | J25: =J70 -> 
A27: + Added Fish Environmental Compliance costs if event occurs | B27: RiskDiscrete | D27: =D73 ->  | F27: =F73 ->  | H27: =H73 ->  | J27: =J73 -> 
A29: - Non-Routine Extraordinary Maintenance Costs Reduction | B29: RiskDiscrete | D29: =D79 ->  | F29: =F79 ->  | H29: =H79 ->  | J29: =J79 -> 
A31: + Catastrophic Event Cost | B31: RiskDiscrete | D31: =D84 ->  | F31: =F84 ->  | H31: =H84 ->  | J31: =J84 -> 
A33: + Additional System Needs Costs | B33: RiskDiscrete | D33: =D90 ->  | F33: =F90 ->  | H33: =H90 ->  | J33: =J90 -> 
A36: Corps of Engineers
A37: Base O&M | B37: Deterministic | D37: =C5 -> 278292.03 | F37: =E5 -> 292351 | H37: =G5 -> 316276 | J37: =I5 -> 341040.0001
A39: Security | D39: CORPO&MSEC-1 | F39: CORPO&MSEC-1 | H39: CORPO&MSEC-2 | J39: CORPO&MSEC-2
D40: =_xll.RiskDiscrete(D41:E41,D42:E42) ->  | F40: =_xll.RiskDiscrete(F41:G41,F42:G42) ->  | H40: =_xll.RiskDiscrete(H41:K41,H42:K42) ->  | J40: =_xll.RiskDiscrete(J41:K41,J42:K42) -> 
B41: Cost of an Event | D41: 3000 | E41: 0 | F41: 3000 | G41: 0 | H41: 3000 | I41: 0 | J41: 3000 | K41: 0
B42: Probability of an event | D42: 0.02 | E42: =1-D42 -> 0.98 | F42: 0.02 | G42: =1-F42 -> 0.98 | H42: 0.02 | I42: =1-H42 -> 0.98 | J42: 0.02 | K42: =1-H42 -> 0.98
A44: Fish - Environmental Compliance | D44: CORPO&Mecomp-1 | F44: CORPO&Mecomp-1 | H44: CORPO&Mecomp-2 | J44: CORPO&Mecomp-2
D45: =_xll.RiskDiscrete(D46:E46,D47:E47) ->  | F45: =_xll.RiskDiscrete(F46:G46,F47:G47) ->  | H45: =_xll.RiskDiscrete(H46:K46,H47:K47) ->  | J45: =_xll.RiskDiscrete(J46:K46,J47:K47) -> 
B46: Cost of an Event | D46: 2000 | E46: 0 | F46: 2000 | G46: 0 | H46: 2000 | I46: 0 | J46: 2000 | K46: 0
B47: Probability of an event | D47: 0.02 | E47: =1-D47 -> 0.98 | F47: 0.02 | G47: =1-F47 -> 0.98 | H47: 0.02 | I47: =1-H47 -> 0.98 | J47: 0.02 | K47: =1-H47 -> 0.98
A49: Non-Routine Extraordinary Maintenance
D50: CORPO&MNREMsav-1 | F50: CORPO&MNREMsav-1 | H50: CORPO&MNREMsav-2 | J50: CORPO&MNREMsav-2
B51: EV Additional Annual Cost | D51: =_xll.RiskDiscrete(D52:E52,D53:E53) ->  | F51: =_xll.RiskDiscrete(F52:G52,F53:G53) ->  | H51: =_xll.RiskDiscrete(H52:K52,H53:K53) ->  | J51: =_xll.RiskDiscrete(J52:K52,J53:K53) -> 
B52: Annual Cost (Additional) | D52: 5000 | E52: 0 | F52: 5000 | G52: 0 | H52: 5000 | I52: 0 | J52: 5000 | K52: 0
B53: Probability that Additional Costs will be provided | D53: 0.025 | E53: =1-D53 -> 0.975 | F53: 0.025 | G53: =1-F53 -> 0.975 | H53: 0.025 | I53: =1-H53 -> 0.975 | J53: 0.025 | K53: =1-H53 -> 0.975
A55: Catastrophic Event | D55: CORPO&MNREM-1 | F55: CORPO&MNREM-1 | H55: CORPO&MNREM-2 | J55: CORPO&MNREM-2
B56: EV Event Cost | D56: =_xll.RiskDiscrete(D57:E57,D58:E58) ->  | F56: =_xll.RiskDiscrete(F57:G57,F58:G58) ->  | H56: =_xll.RiskDiscrete(H57:K57,H58:K58) ->  | J56: =_xll.RiskDiscrete(J57:K57,J58:K58) -> 
B57: Event Cost | D57: 30000 | E57: 0 | F57: 30000 | G57: 0 | H57: 30000 | I57: 0 | J57: 30000 | K57: 0
B58: Event Probability | D58: 0.01 | E58: =1-D58 -> 0.99 | F58: 0.01 | G58: =1-F58 -> 0.99 | H58: 0.01 | I58: =1-H58 -> 0.99 | J58: 0.01 | K58: =1-H58 -> 0.99
A60: New System Requirements/Needs (e.g. for compliance/regulations, etc.)
D61: CORPO&MNREM-1 | F61: CORPO&MNREM-1 | H61: CORPO&MNREM-1 | J61: CORPO&MNREM-1
B62: EV Additional Annual Cost | D62: =_xll.RiskDiscrete(D63:E63,D64:E64) ->  | F62: =_xll.RiskDiscrete(F63:G63,F64:G64) ->  | H62: =_xll.RiskDiscrete(H63:K63,H64:K64) ->  | J62: =_xll.RiskDiscrete(J63:K63,J64:K64) -> 
B63: Annual Cost (Additional) | D63: 5000 | E63: 0 | F63: 5000 | G63: 0 | H63: 5000 | I63: 0 | J63: 5000 | K63: 0
B64: Probability of Additional Costs | D64: 0.1 | E64: =1-D64 -> 0.9 | F64: 0.1 | G64: =1-F64 -> 0.9 | H64: 0.1 | I64: =1-H64 -> 0.9 | J64: 0.1 | K64: =1-H64 -> 0.9
A66: Bureau
A67: Base O&M | B67: RiskPert | D67: =C21 -> 180760 | F67: =E21 -> 195235.0001 | H67: =G21 -> 206763 | J67: =I21 -> 208089.0001
A69: Security | D69: BURO&MSEC-1 | F69: BURO&MSEC-1 | H69: BURO&MSEC-2 | J69: BURO&MSEC-2
D70: =D40 ->  | F70: =F40 ->  | H70: =H40 ->  | J70: =J40 -> 
A72: Fish - Environmental Compliance | D72: BURO&Mecomp-1 | F72: BURO&Mecomp-1 | H72: BURO&Mecomp-2 | J72: BURO&Mecomp-2
D73: =_xll.RiskDiscrete(D74:E74,D75:E75) ->  | F73: =_xll.RiskDiscrete(F74:G74,F75:G75) ->  | H73: =_xll.RiskDiscrete(H74:K74,H75:K75) ->  | J73: =_xll.RiskDiscrete(J74:K74,J75:K75) -> 
B74: Cost of an Event | D74: 2000 | E74: 0 | F74: 2000 | G74: 0 | H74: 2000 | I74: 0 | J74: 2000 | K74: 0
B75: Probability of an event | D75: 0.02 | E75: =1-D75 -> 0.98 | F75: 0.02 | G75: =1-F75 -> 0.98 | H75: 0.02 | I75: =1-H75 -> 0.98 | J75: 0.02 | K75: =1-H75 -> 0.98
A77: Non-Routine Extraordinary Maintenance
D78: BURO&MNREMsav-1 | F78: BURO&MNREMsav-1 | H78: BURO&MNREMsav-2 | J78: BURO&MNREMsav-2
B79: EV Additional Annual Cost | D79: =_xll.RiskDiscrete(D80:E80,D81:E81) ->  | F79: =_xll.RiskDiscrete(F80:G80,F81:G81) ->  | H79: =_xll.RiskDiscrete(H80:K80,H81:K81) ->  | J79: =_xll.RiskDiscrete(J80:K80,J81:K81) -> 
B80: Annual Cost (Additional) | D80: 5000 | E80: 0 | F80: 5000 | G80: 0 | H80: 5000 | I80: 0 | J80: 5000 | K80: 0
B81: Probability that Additional Costs will be provided | D81: 0.025 | E81: =1-D81 -> 0.975 | F81: 0.025 | G81: =1-F81 -> 0.975 | H81: 0.025 | I81: =1-H81 -> 0.975 | J81: 0.025 | K81: =1-H81 -> 0.975
A83: Catastrophic Event | D83: BURO&MNREM-1 | F83: BURO&MNREM-1 | H83: BURO&MNREM-2 | J83: BURO&MNREM-2
B84: EV Event Cost | D84: =_xll.RiskDiscrete(D85:E85,D86:E86) ->  | F84: =_xll.RiskDiscrete(F85:G85,F86:G86) ->  | H84: =_xll.RiskDiscrete(H85:K85,H86:K86) ->  | J84: =_xll.RiskDiscrete(J85:K85,J86:K86) -> 
B85: Event Cost | D85: 30000 | E85: 0 | F85: 30000 | G85: 0 | H85: 30000 | I85: 0 | J85: 30000 | K85: 0
B86: Event Probability | D86: 0.01 | E86: =1-D86 -> 0.99 | F86: 0.01 | G86: =1-F86 -> 0.99 | H86: 0.01 | I86: =1-H86 -> 0.99 | J86: 0.01 | K86: =1-H86 -> 0.99
A88: New System Requirements/Needs (e.g. for compliance/regulations, etc.)
D89: BURO&Mnsneedinc-1 | F89: BURO&Mnsneedinc-1 | H89: BURO&Mnsneedinc-2 | J89: BURO&Mnsneedinc-2
B90: EV Additional Annual Cost | D90: =_xll.RiskDiscrete(D91:E91,D92:E92) ->  | F90: =_xll.RiskDiscrete(F91:G91,F92:G92) ->  | H90: =_xll.RiskDiscrete(H91:K91,H92:K92) ->  | J90: =_xll.RiskDiscrete(J91:K91,J92:K92) -> 
B91: Annual Cost (Additional) | D91: 5000 | E91: 0 | F91: 5000 | G91: 0 | H91: 5000 | I91: 0 | J91: 5000 | K91: 0
B92: Probability of Additional Costs | D92: 0.1 | E92: =1-D92 -> 0.9 | F92: 0.1 | G92: =1-F92 -> 0.9 | H92: 0.1 | I92: =1-H92 -> 0.9 | J92: 0.1 | K92: =1-H92 -> 0.9

Sheet F&W Expense
D4: @risk | F4: @risk | H4: @risk | J4: @risk
D5: FY25 | F5: FY26 | H5: FY27 | J5: FY28
B6: F&W Roll Up (excludes Lower Snake Hatch) | D6: =D9+D14+D18 ->  | F6: =F9+F14+F18 ->  | H6: =H9+H14+H18 ->  | J6: =J9+J14+J18 -> 
A9: RiskPert | B9: F&W Direct Program Cost | C9: ='Risk Summary'!C13 -> 264691.4023 | D9: =_xll.RiskPert(C10,C11,C12) ->  | E9: ='Risk Summary'!E13 -> 275484.4044 | F9: =_xll.RiskPert(E10,E11,E12) ->  | G9: ='Risk Summary'!G13 -> 282484.0094 | H9: =_xll.RiskPert(G10,G11,G12) ->  | I9: ='Risk Summary'!I13 -> 289505.0212 | J9: =_xll.RiskPert(I10,I11,I12) -> 
B10: Min | C10: =C9*0.95 -> 251456.8322 | E10: =E9*0.95 -> 261710.1842 | G10: =G9*0.95 -> 268359.8089 | I10: =I9*0.95 -> 275029.7702
B11: Most Likely | C11: =C9 -> 264691.4023 | E11: =E9*0.975 -> 268597.2943 | G11: =G9*0.975 -> 275421.9091 | I11: =I9*0.975 -> 282267.3957
B12: Max | C12: =C9*1.05 -> 277925.9725 | E12: =E9 -> 275484.4044 | G12: =G9 -> 282484.0094 | I12: =I9 -> 289505.0212
A14: RiskDiscrete | B14: Reclamation - Leavenworth Complex O&M | C14: 0 | D14: =_xll.RiskDiscrete(C16:D16,C15:D15) ->  | E14: 0 | F14: =_xll.RiskDiscrete(E16:F16,E15:F15) ->  | G14: 0 | H14: =_xll.RiskDiscrete(G16:H16,G15:H15) ->  | I14: 0 | J14: =_xll.RiskDiscrete(I16:J16,I15:J15) -> 
B15: P | C15: =1%/2 -> 0.005 | D15: =1-C15 -> 0.995 | E15: 0.01 | F15: =1-E15 -> 0.99 | G15: 0.01 | H15: =1-G15 -> 0.99 | I15: 0.01 | J15: =1-I15 -> 0.99
B16: Value | C16: 1000 | D16: 0 | E16: 1000 | F16: 0 | G16: 1000 | H16: 0 | I16: 1000 | J16: 0
A18: RiskDiscrete | B18: COE - Fish Passage Facilities | C18: 0 | D18: =_xll.RiskDiscrete(C20:D20,C19:D19) ->  | E18: 0 | F18: =_xll.RiskDiscrete(E20:F20,E19:F19) ->  | G18: 0 | H18: =_xll.RiskDiscrete(G20:H20,G19:H19) ->  | I18: 0 | J18: =_xll.RiskDiscrete(I20:J20,I19:J19) -> 
B19: P | C19: =1%/2 -> 0.005 | D19: =1-C19 -> 0.995 | E19: 0.01 | F19: =1-E19 -> 0.99 | G19: 0.01 | H19: =1-G19 -> 0.99 | I19: 0.01 | J19: =1-I19 -> 0.99
B20: Value | C20: 1000 | D20: 0 | E20: 1000 | F20: 0 | G20: 1000 | H20: 0 | I20: 1000 | J20: 0
D23: =D5 -> FY25 | F23: =F5 -> FY26 | H23: =H5 -> FY27 | J23: =J5 -> FY28
A24: RiskPert | B24: USF&W Lower Snake Hatcheries | C24: ='Risk Summary'!C14 -> 32934.829 | D24: =_xll.RiskPert(C25,C26,C27) ->  | E24: ='Risk Summary'!E14 -> 33776.71299 | F24: =_xll.RiskPert(E25,E26,E27) ->  | G24: ='Risk Summary'!G14 -> 34706.83699 | H24: =_xll.RiskPert(G25,G26,G27) ->  | I24: ='Risk Summary'!I14 -> 35668.56 | J24: =_xll.RiskPert(I25,I26,I27) -> 
B25: Min | C25: =C27*0.95 -> 32852.49193 | E25: =E27*0.9 -> 30399.04169 | G25: =G27*0.9 -> 31236.15329 | I25: =I27*0.9 -> 32101.704
B26: Most Likely | C26: =C27 -> 34581.57045 | E26: =E27*0.95 -> 32087.87734 | G26: =G27*0.95 -> 32971.49514 | I26: =I27*0.95 -> 33885.132
B27: Max | C27: =C24*1.05 -> 34581.57045 | E27: =E24 -> 33776.71299 | G27: =G24 -> 34706.83699 | I27: =I24 -> 35668.56

Sheet Src Proforma
C1: Power Services Revenue Forecast
C2: BP-26 Rate Case Initial Proposal - Revenue at Current Rates | D2: FY25 | E2: FY26 | F2: FY27 | G2: FY28
C3: CategoryEnergy | D3: $ (000's) | E3: $ (000's) | F3: $ (000's) | G3: $ (000's)
C4: Composite Revenue57 | D4: 2374067.54 | E4: 2463225.95 | F4: 2473880.071 | G4: 2482548.516
C5: Non-Slice Revenue | D5: -330791.964 | E5: -344840.3245 | F5: -346542.5251 | G5: -347927.476
C6: Slice58 | D6: 0 | E6: 0 | F6: 0 | G6: 0
C7: Tier 260 | D7: 198941.444 | E7: 330300.9328 | F7: 341899.5436 | G7: 367549.4714
C8: Load Shaping Revenue59 | D8: 64669.429 | E8: 72092.99727 | F8: 76823.68987 | G8: 72723.91638
C9: Demand Revenue5 | D9: 62636.257 | E9: 141637.483 | F9: 148211.929 | G9: 156467.5878
C10: Irrigation Rate Discount | D10: -21770.165 | E10: -22579.25453 | F10: -22579.25453 | G10: -22579.25453
C11: Low Density Discount | D11: -27982.243 | E11: -42904.23133 | F11: -44060.31699 | G11: -49181.31642
C12: RSS (Non-Federal)/ Other63 | D12: 1011.672 | E12: 1090 | F12: 1088 | G12: 1088
C13: PF customers (TRM) sub-total | D13: 2320781.97 | E13: 2598023.552 | F13: 2628721.136 | G13: 2660689.445
C14: New Resource Firm Power6A | D14: 0 | E14: 7442.404941 | F14: 19880.11493 | G14: 28019.77495
C15: NR Revenues from ESS Energy and Capacity Charges | D15: 0 | E15: 3850.246522 | F15: 4658.003201 | G15: 5668.241051
C16: NR sub-total | D16: 0 | E16: 11292.65146 | F16: 24538.11813 | G16: 33688.016
C17: DSI - Alcoa6B | D17: 0
C18: DSI - Port Townsend7A | D18: 4356.17604
C19: DSIs sub-total7 | D19: 4356.17604 | E19: 4492.735717 | F19: 4492.737466 | G19: 4507.037743
C20: FPS Other | D20: 9206.058206 | E20: 9766.802904 | F20: 9975.247906 | G20: 10255.81452
C21: Firm Water Transition Power | D21: 2584.26736 | E21: 0 | F21: 0 | G21: 0
C22: FPS sub-total | D22: 11790.32557 | E22: 9766.802904 | F22: 9975.247906 | G22: 10255.81452
C23: Firm Surplus Sale (Rate Case Only and includes Tier 2 sale) | D23: 0 | E23: 239235 | F23: 144245 | G23: 188595
C24: Committed sales (TF)9 | D24: 40764.536 | E24: 11688 | F24: 2358 | G24: 0
C25: Balancing sales (unadjusted) | D25: 239324.9494 | E25: 380692.3523 | F25: 362553.3643 | G25: 351373.8123
C26: PRSC Revenue | D26: 0 | E26: 0 | F26: 0 | G26: 0
C27: Fin Settled Tx Losses Revenue | D27: 74079.79723 | E27: 44921 | F27: 44921 | G27: 44921
C28: Forward DSI and other secondary sales | D28: 21389.582 | E28: 0 | F28: 0 | G28: 0
C29: Cal ISO sales | D29: 0 | E29: 42415.89126 | F29: 38410.78351 | G29: 33984.08642
C30: Forward DSI sale | D30: 0 | E30: 0 | F30: 0 | G30: 0
C31: Balancing sales10 | D31: 375558.8647 | E31: 479717.2436 | F31: 448243.1478 | G31: 430278.8987
C32: Short-term market sales sub-total | D32: 375558.8647 | E32: 718952.2436 | F32: 592488.1478 | G32: 618873.8987
C33: PG&E (Wind Energy Exchange Delivery to BPA) 08PB-1198422 | D33: 0 | E33: 0 | F33: 0 | G33: 0
C34: PG&E (Wind Energy Exchange Delivery to PG&E) 08PB-1198423 | D34: 0 | E34: 0 | F34: 0 | G34: 0
C35: Other Locational/Seasonal Exchange | D35: 0 | E35: 0 | F35: 0 | G35: 0
C36: Avista (WNP-3 Exchange)DE-MS79-85BP9218629 | D36: 0 | E36: 0 | F36: 0 | G36: 0
C37: WNP3 Settlement | D37: 0 | E37: 0 | F37: 0 | G37: 0
C38: Long Term Contractual Obligations sub-total | D38: 0 | E38: 0 | F38: 0 | G38: 0
C39: Canadian Entitlement Return for Canada (Total)34 | D39: 0 | E39: 0 | F39: 0 | G39: 0
C40: Canadian Entitlement Return | D40: 0 | E40: 0 | F40: 0 | G40: 0
C41: Miscellaneous Credits46 | D41: 0 | E41: 0 | F41: 0 | G41: 0
C42: Revenues from Slice Product Conversion | D42: 0 | E42: 0 | F42: 0 | G42: 0
C43: Slice True up | D43: 25226.98734 | E43: 0 | F43: 0 | G43: 0
C44: Surcharge/RDC (Reserves) | D44: 0 | E44: 0 | F44: 0 | G44: 0
C45: Liquidated Damages | D45: 0 | E45: 0 | F45: 0 | G45: 0
C46: Load Shaping True up | D46: 0 | E46: 0 | F46: 0 | G46: 0
C47: Other Sales sub-total | D47: 25226.98734 | E47: 0 | F47: 0 | G47: 0
C48: Gross Sales (400001) | D48: 2737714.323 | E48: 3342527.986 | F48: 3260215.388 | G48: 3328014.212
C49: Bookouts47 | D49: 0 | E49: 0 | F49: 0 | G49: 0
C50: Bookout adjustment to Sales (400001) | D50: 0 | E50: 0 | F50: 0 | G50: 0
C51: Lookback Adjustments | D51: 0 | E51: 0 | F51: 0 | G51: 0
C52: Provisions for Rate Refunds (449101) | D52: 0 | E52: 0 | F52: 0 | G52: 0
C53: GTA Delivery charge | D53: 3100.001 | E53: 3100.001 | F53: 3100.001 | G53: 3100.001
C54: Energy Efficiency Revenues | D54: 0 | E54: 0 | F54: 0 | G54: 0
C55: Financial Swap Revenues | D55: 0 | E55: 0 | F55: 0 | G55: 0
C56: Upper Baker revenues50A | D56: 509.9437328 | E56: 484.5575666 | F56: 475.9183444 | G56: 456.2562126
C57: Miscellaneous US Bureau of Reclamation Revenues | D57: 0 | E57: 0 | F57: 0 | G57: 0
C58: Miscellaneous US Corps of Engineers Revenues | D58: 0 | E58: 0 | F58: 0 | G58: 0
C59: Irrigation Pumping Power48 | D59: 1225.08938 | E59: 1206.521387 | F59: 1206.521387 | G59: 1206.521387
C60: Reserve Energy49 | D60: 10637.22708 | E60: 10482.22 | F60: 10482.22 | G60: 10482.22
C61: USBR Owyhee Wheeling Project | D61: 1601.872667 | E61: 1732.053667 | F61: 1732.053667 | G61: 1732.053667
C62: Downstream Benefits50 | D62: 7428.888 | E62: 7772.353 | F62: 7772.353 | G62: 7772.353
C63: Downstream Benefits - Financial accrual (redist to FERC payment) | D63: 0 | E63: 0 | F63: 0 | G63: 0
C64: Downstream Benefits (ASPRJ Bureau) | D64: 0 | E64: 0 | F64: 0 | G64: 0
C65: Downstream Benefits (ASPRJ CORP) | D65: 0 | E65: 0 | F65: 0 | G65: 0
C66: Downstream Benefits subtotal | D66: 7428.888 | E66: 7772.353 | F66: 7772.353 | G66: 7772.353
C67: Miscellaneous Revenues (400002) | D67: 24503.02186 | E67: 24777.70662 | F67: 24769.0674 | G67: 24749.40527
C68: Balancing Reserve Capacity Balancing Reserve Capacity | D68: 60889.72 | E68: 63544.44388 | F68: 86018.17 | G68: 93988.78
C69: ACS Risk Share | D69: 0 | E69: 0 | F69: 0 | G69: 0
C70: Risk Mitigation Tool | D70: 0 | E70: 0 | F70: 0 | G70: 0
C71: Operating Reserve - Energy | D71: 27917.50418 | E71: 29225.60775 | F71: 31107.28862 | G71: 32233.83294
C72: Operating Reserve - Spinning | D72: 17144.35941 | E72: 15112.51633 | F72: 16085.53059 | G72: 16668.06492
C73: Operating Reserve - Supplemental | D73: 0 | E73: 0 | F73: 0 | G73: 0
C74: Operating Reserve - Spinning Adjustment for WNP-3 Settlement Agreement | D74: 0 | E74: 0 | F74: 0 | G74: 0
C75: Operating Reserve - Supplemental Adjustment for WNP-3 Settlement Agreement | D75: 0 | E75: 0 | F75: 0 | G75: 0
C76: Energy Imbalance | D76: 0 | E76: 0 | F76: 0 | G76: 0
C77: Generation Imbalance | D77: 0 | E77: 0 | F77: 0 | G77: 0
C78: Energy Imbalance Persistent Deviation | D78: 0 | E78: 0 | F78: 0 | G78: 0
C79: Generation Imbalance Persistent Deviation | D79: 0 | E79: 0 | F79: 0 | G79: 0
C80: FFI Penalty | D80: 0 | E80: 0 | F80: 0 | G80: 0
C81: Imbalance Adjustment for Third-Party Deployed Energy | D81: 0 | E81: 0 | F81: 0 | G81: 0
C82: Settlement Annual Budget Adjustment | D82: 1291.757 | E82: 1636.87608 | F82: 1636.87608 | G82: 1636.87608
C83: Synchronous Condensing | D83: 602.93 | E83: 714.37512 | F83: 714.37512 | G83: 714.37512
C84: Generation Dropping | D84: 332.147 | E84: 244.8828 | F84: 244.8828 | G84: 244.8828
C85: Redispatch | D85: 8161 | E85: 7695.99996 | F85: 7695.99996 | G85: 7695.99996
C86: COE/Reclamation Network/Delivery Facilities Segmentation | D86: 3306.944 | E86: 3249.52896 | F86: 3249.52896 | G86: 3249.52896
C87: Station Service52 | D87: 582.0181132 | E87: 0 | F87: 0 | G87: 0
C88: 168hr in-kind Delay Losses Service | D88: 0 | E88: 0 | F88: 0 | G88: 0
C89: Inter-Business Unit / Gen Inputs for Ancillary and Other Services (400003) | D89: 120228.3797 | E89: 121424.2309 | F89: 146752.6521 | G89: 156432.3408
C90: 4(h)(10)(c) | D90: 128472.9855 | E90: 124910.8888 | F90: 131116.8711 | G90: 132162.7666
C91: Colville and Spokane Settlements | D91: 4600 | E91: 4600 | F91: 4600 | G91: 4600
C92: Treasury Credits (400005 and 400006) | D92: 133072.9855 | E92: 129510.8888 | F92: 135716.8711 | G92: 136762.7666
C93: TOTAL OPERATING REVENUES | D93: 3015518.71 | E93: 3618240.812 | F93: 3567453.978 | G93: 3645958.725
C94: Augmentation Purchases61 | D94: 0 | E94: 0 | F94: 0 | G94: 0
C95: Augmentation Power Purchase total | D95: 0 | E95: 0 | F95: 0 | G95: 0
C96: Other Augmentation | E96: 10808.753 | F96: 17044.57287 | G96: 21197.11842
C97: Balancing Purchases (unadjusted) | D97: 103516.9607 | E97: 78914.79121 | F97: 58314.72665 | G97: 73737.90843
C98: (Transmission re-dispatch for Gen Inputs adjustment) | D98: 0 | E98: 244.88281 | F98: 244.88281 | G98: 244.88281
C99: Balancing Purchases53 | D99: 103516.9607 | E99: 79159.67402 | F99: 58559.60946 | G99: 73982.79124
C100: SILS Power Purchases (within year included in balancing purchases) | D100: 0 | E100: 24232.40976 | F100: 24232.40976 | G100: 24232.40976
C101: Committed Purchases (TF)54 | D101: 38447.149 | E101: 0 | F101: 0 | G101: 0
C102: PRSC Expense | E102: 0 | F102: 0 | G102: 0
C103: Non Treaty Storage Agreement expense (TF) | D103: 0 | E103: 0 | F103: 0 | G103: 0
C104: Libby Coordination Agreement (TF) | D104: 0 | E104: 0 | F104: 0 | G104: 0
C105: Balancing Power Purchase sub-total | D105: 141964.1097 | E105: 103392.0838 | F105: 82792.01922 | G105: 98215.201
C106: Non-Treaty Storage Agreement Expense - slice portion | D106: 0 | E106: 0 | F106: 0 | G106: 0
C107: Libby Coordination Agreement Expense - slice portion | D107: 0 | E107: 0 | F107: 0 | G107: 0
C108: Rocky Brook Power Purchase | D108: 0 | E108: 0 | F108: 0 | G108: 0
C109: Tier 2 Short-Term Power Purchase | D109: 191890.8613 | E109: 0 | F109: 0 | G109: 0
C110: Tier 2 Short-Term Forecasted Power Purchase | D110: 0 | E110: 311915.1263 | F110: 321121.5574 | G110: 345118.6937
C111: Tier 2 Load Growth Term Power Purchase12PM-10174 | D111: 0 | E111: 0 | F111: 0 | G111: 0
C112: Tier 2 Load Growth Term Power Purchase17PM-1397460B | D112: 0 | E112: 9532.773911 | F112: 10450.74577 | G112: 11237.30538
C113: Tier 2 Load Growth Forecasted Power Purchase | D113: 8522.88197 | E113: 0 | F113: 0 | G113: 0
C114: Tier 2 Vintage Power Purchase12PM-1017460E | D114: 0 | E114: 0 | F114: 0 | G114: 0
C115: Tier 2 Vintage Power Purchase13PM-1113660C | D115: 0 | E115: 0 | F115: 0 | G115: 0
C116: Tier 2 VintageForecast Power Purchase | D116: 0 | E116: 0 | F116: 0 | G116: 0
C117: Tier 2 Vintage Losses 201417PM-13974 | D117: 0 | E117: 0 | F117: 0 | G117: 0
C118: Tier 2 Vintage Losses 201617PM-13974 | D118: 0 | E118: 0 | F118: 0 | G118: 0
C119: Tier 2 VintageForecast Power Purchase | D119: 0 | E119: 0 | F119: 0 | G119: 0
C120: Tier 2 Purchases | D120: 200413.7433 | E120: 321447.9003 | F120: 331572.3031 | G120: 356355.9991
C121: Foote Creek I Wind Project (PacifiCorp)94MS-94375 | D121: 0 | E121: 0 | F121: 0 | G121: 0
C122: Foote Creek I Wind Project (Storage for EWEB Amount)94MS-94375 | D122: 0 | E122: 0 | F122: 0 | G122: 0
C123: Foote Creek I Wind Project (Transmission for EWEB Amount)94MS-94375 | D123: 0 | E123: 0 | F123: 0 | G123: 0
C124: Foote Creek I Wind Project (EWEB)94MS-94375 | D124: 0 | E124: 0 | F124: 0 | G124: 0
C125: Foote Creek I Wind Project (Settlement Credit to EWEB)15PM-12909 | D125: 0 | E125: 0 | F125: 0 | G125: 0
C126: Foote Creek IV Wind Project (SeaWest Windpower Inc.)00PB-10652 | D126: 0 | E126: 0 | F126: 0 | G126: 0
C127: Foote Creek IV Wind Project (PacifiCorp) (Storage, Generation Control)00PB-10708 | D127: 0 | E127: 0 | F127: 0 | G127: 0
C128: Foote Creek IV Wind Project (PacifiCorp) (UFT)00PB-10708 | D128: 0 | E128: 0 | F128: 0 | G128: 0
C129: Condon Wind Project (Condon Wind Power, LLC for energy) 00PB-10692 | D129: 0 | E129: 0 | F129: 0 | G129: 0
C130: Condon Wind Project (Condon Wind Power, LLC for generation imbalance) | D130: 0 | E130: 0 | F130: 0 | G130: 0
C131: Condon Wind Project (Condon Wind Power, LLC for VERBS) 00PB-10692 | D131: 0 | E131: 0 | F131: 0 | G131: 0
C132: Stateline Wind Project (Exelon Generation Company, LLC for energy) 01PB-10761 | D132: 9835.701744 | E132: 10081.59429 | F132: 2295.187672 | G132: 0
C133: Stateline Wind Project (Exelon Generation Company, LLC for monthly true-up aka generation imbalance) | D133: 0 | E133: 0 | F133: 0 | G133: 0
C134: Stateline Wind Project (Exelon Generation Company, LLC for VERBS) 01PB-10761 | D134: 661.8744 | E134: 661.8744 | F134: 165.4686 | G134: 0
C135: Klondike Wind Project (PPM/Northwestern Wind Power LLC)02PB-11093 | D135: 0 | E135: 0 | F135: 0 | G135: 0
C136: Klondike Wind Project Tx Loss Adjustment/Gen Imbalance02PB-11093 | D136: 0 | E136: 0 | F136: 0 | G136: 0
C137: Ashland Solar 00PB-10651 | D137: 0 | E137: 0 | F137: 0 | G137: 0
C138: Fourmile Hill Geothermal (Calpine Siskiyou Partners)93956 | D138: 0 | E138: 0 | F138: 0 | G138: 0
C139: Risk adjustment for Foote Creek I and IV, Condon, Stateline and Klondike I for energy output above critical, generation imbalance and contractual true-up costs. | D139: 7340.868038 | E139: 5029.5878 | F139: 2306.950538 | G139: 0
C140: Renewable Purchases - general (excl. Klondike III) | D140: 10497.57614 | E140: 15773.05649 | F140: 4767.60681 | G140: 0
C141: Klondike III Wind Project07PB-11860 | D141: 6755.8854 | E141: 6755.8854 | F141: 6755.8854 | G141: 1049.6046
C142: Klondike III Wind Project (Monthly True Up)07PB-11860 | D142: 0 | E142: 0 | F142: 0 | G142: 0
C143: Klondike III Wind Project (Wind Balancing Service)07PB-11860 | D143: 300 | E143: 300 | F143: 300 | G143: 50
C144: Critical Wind Quantity Expense Adjustment for Klondike III | D144: 1872.670418 | E144: 1283.058112 | F144: 588.5077902 | G144: 1112.3954
C145: Renewable Purchases - Klondike III | D145: 8928.555818 | E145: 8338.943512 | F145: 7644.39319 | G145: 2212
C146: Critical Wind Quantity Expense Adjustment | D146: 0 | E146: 0 | F146: 0 | G146: 0
C147: Total Renewable Purchases | D147: 19426.13196 | E147: 24112 | F147: 12412 | G147: 2212
C148: Power Purchases | D148: 342377.853 | E148: 424839.984 | F148: 414364.3224 | G148: 454571.2001
C149: Columbia Generating Station | D149: 381842.341 | E149: 348985.046 | F149: 413666.166 | G149: 380973.514
C150: Bureau Of Reclamation | D150: 180760 | E150: 195235.0001 | F150: 206763 | G150: 208089.0001
C151: Corps of Engineers | D151: 278292.03 | E151: 292351 | F151: 316276 | G151: 341040.0001
C152: CRFM Studies | D152: 12871.99999 | E152: 12510 | F152: 12914.00004 | G152: 13329
C153: Long-Term Contract Generating Projects | D153: 23223.25697 | E153: 30481.73704 | F153: 35637.27298 | G153: 32549.68806
C154: Operating Generation | D154: 876989.628 | E154: 879562.7832 | F154: 985256.4391 | G154: 975981.2021
C155: Colville Generation Settlement | D155: 27523 | E155: 27523.35996 | F155: 28131.99996 | G155: 28760.00004
C156: Spokane Generation Settlement | D156: 6881.00004 | E156: 6880.83996 | F156: 7032.99996 | G156: 7190.00004
C157: Amortization of P2IP Settlement Payments | D157: 0 | E157: 14222.22222 | F157: 14222.22222 | G157: 14222.22222
C158: Amortization of 6S Settlement Payments | D158: 0 | E158: 13900 | F158: 13900 | G158: 13900
C159: Operating Generation Settlements and Other Payments | D159: 34404.00004 | E159: 62526.42214 | F159: 63287.22214 | G159: 64072.2223
C160: Trojan Decommissioning | D160: 1199.99996 | E160: 1299.99996 | F160: 1329 | G160: 1359
C161: WNP-1&3 Decommissioning | D161: 1175.00002 | E161: 1400.00004 | F161: 1431 | G161: 1463.00004
C162: Non-Operating Generation | D162: 2374.99998 | E162: 2700 | F162: 2760 | G162: 2822.00004
C163: PNCA Headwater Benefits | D163: 3099.99998 | E163: 0 | F163: 0 | G163: 0
C164: Purchases for Service at Tier 2 Rates | D164: 200413.743 | E164: 321447.9003 | F164: 331572.3031 | G164: 356355.9991
C165: Other Power Purchases (e.g. Trading Floor) | D165: 141964.1097 | E165: 103392.0838 | F165: 82792.01922 | G165: 98215.201
C166: Gross Contracted Power Purchases (excluding bookout adjustments) <Note 1 | D166: 345477.8527 | E166: 424839.984 | F166: 414364.3224 | G166: 454571.2001
C167: Bookout Adjustments to Contracted Power Purchases <Note 1 | D167: 0 | E167: 0 | F167: 0 | G167: 0
C168: Augmentation Power Purchases | D168: 0 | E168: 0 | F168: 0 | G168: 0
C169: Other Augmentation | D169: 0 | E169: 10808.753 | F169: 17044.57287 | G169: 21197.11842
C170: Augmentation Power Purchases | D170: 0 | E170: 10808.753 | F170: 17044.57287 | G170: 21197.11842
C171: Residential Exchange Program | D171: 274819.878 | E171: 291689.2162 | F171: 291771.9418 | G171: 292671.1189
C172: Other Settlements | D172: 0 | E172: 0 | F172: 0 | G172: 0
C173: Exchanges & Settlements | D173: 274819.878 | E173: 291689.2162 | F173: 291771.9418 | G173: 292671.1189
C174: Renewable Conservation Rate Credit | D174: 0 | E174: 0 | F174: 0 | G174: 0
C175: Renewables | D175: 23136.99999 | E175: 24112.00001 | F175: 12412 | G175: 2211.99998
C176: Renewable Generation | D176: 23136.99999 | E176: 24112.00001 | F176: 12412 | G176: 2211.99998
C177: DSM Technology | D177: 0 | E177: 0 | F177: 0 | G177: 0
C178: Conservation Purchases | D178: 69027.249 | E178: 65384.524 | F178: 65384.524 | G178: 86512.69899
C179: Conservation Infrastructure | D179: 24348.09403 | E179: 32443.0395 | F179: 32492.09086 | G179: 32497.38948
C180: Low Income Weatherization & Tribal | D180: 6005.00001 | E180: 6005.00001 | F180: 6005.00001 | G180: 6005.00001
C181: Energy Efficiency Development | D181: 0 | E181: 0 | F181: 0 | G181: 0
C182: Legacy | D182: 589.99999 | E182: 0 | F182: 0 | G182: 0
C183: Market Transformation | D183: 14500 | E183: 14999.99998 | F183: 14999.99998 | G183: 14999.99998
C184: Conservation Rate Credit (CRC) | D184: 0 | E184: 0 | F184: 0 | G184: 0
C185: Distributed Energy Resources | D185: 215 | E185: 500.00002 | F185: 500.00002 | G185: 500.00002
C186: Generation Conservation | D186: 114685.343 | E186: 119332.5635 | F186: 119381.6149 | G186: 140515.0885
C187: Power System Generation Sub-Total | D187: 1671888.702 | E187: 1815571.722 | F187: 1906278.113 | G187: 1954041.95
C188: Information Technology | D188: 0 | E188: 0 | F188: 0 | G188: 0
C189: Generation Project Coordination | D189: 3897.14378 | E189: 4500.60409 | F189: 4615.25526 | G189: 4732.001
C190: Asset Mgmt Enterprise Svcs | D190: 895.35018 | E190: 0 | F190: 0 | G190: 0
C191: Slice Implementation | D191: 730.80848 | E191: 835.08948 | F191: 862.90632 | G191: 891.23112
C192: Power Services System Operations | D192: 5523.30244 | E192: 5335.69357 | F192: 5478.16158 | G192: 5623.23212
C193: Operations Scheduling | D193: 12051.8838 | E193: 12027.7671 | F193: 12516.38601 | G193: 13038.20979
C194: Operations Planning | D194: 10623.11911 | E194: 11860.93416 | F194: 12170.0922 | G194: 12499.24356
C195: Power Services Scheduling | D195: 22675.00291 | E195: 23888.70126 | F195: 24686.47821 | G195: 25537.45335
C196: Commercial Enterprise Svcs | D196: 6150.80188 | E196: 0 | F196: 0 | G196: 0
C197: Operations Enterprise Svcs | D197: 5525.59832 | E197: 0 | F197: 0 | G197: 0
C198: EIM Internal Support | D198: 0 | E198: 0 | F198: 0 | G198: 0
C199: Power R&D | D199: 2028.58393 | E199: 2155.58394 | F199: 2155.58394 | G199: 2155.58394
C200: Sales & Support | D200: 14687.90588 | E200: 14504.1061 | F200: 15022.43576 | G200: 15566.93996
... 61 more rows

Sheet NR_to_Cash
A3: TOOLKIT NET REVENUE TO CASH ADJUSTMENTS
A4: (in $Thousands)
C6: FY 2025 | D6: FY 2026 | E6: FY 2027 | F6: FY2028
A8: 1 | B8: Input NRTC Adjustment | C8: -155327 | D8: -283877 | E8: -105647 | F8: -78023
A9: 7 | B9: Net Revenue to Cash Adjustment | C9: =C8 -> -155327 | D9: =D8 -> -283877 | E9: =E8 -> -105647 | F9: =F8 -> -78023
B12: (in $Thousands) | C12: =C6 -> FY 2025 | D12: =D6 -> FY 2026 | E12: =E6 -> FY 2027 | F12: =F6 -> FY2028
B13: PS NR | C13: ='Src Proforma'!D260 -> -82594.29069 | D13: ='Src Proforma'!E260 -> 288934.7824 | E13: ='Src Proforma'!F260 -> 106392.3006 | F13: ='Src Proforma'!G260 -> 78135.09917
B16: BOY Reserves for risk | C16: 508000 | D16: =C17 -> 270078.7093 | E16: =D17 -> 275136.4917 | F16: =E17 -> 275881.7923
B17: EOY Reserves for risk | C17: =C16+C13+C9 -> 270078.7093 | D17: =D16+D13+D9 -> 275136.4917 | E17: =E16+E13+E9 -> 275881.7923 | F17: =F16+F13+F9 -> 275993.8915

Sheet Output
M5: Static Pasted values
B6: Net Revenue ($000) | G6: ATC ($000) | M6: Net Revenue ($000) | R6: ATC ($000)
A7: Game | B7: 2025 | C7: 2026 | D7: 2027 | E7: 2028 | G7: 2025 | H7: 2026 | I7: 2027 | J7: 2028 | L7: Game | M7: 2025 | N7: 2026 | O7: 2027 | P7: 2028 | R7: 2025 | S7: 2026 | T7: 2027 | U7: 2028
A8: 1 | B8: =_xll.RiskData('Risk Summary'!L$21,1) ->  | C8: =_xll.RiskData('Risk Summary'!M$21,1) ->  | D8: =_xll.RiskData('Risk Summary'!N$21,1) ->  | E8: =_xll.RiskData('Risk Summary'!O$21,1) ->  | G8: =NR_to_Cash!C$9 -> -155327 | H8: =NR_to_Cash!D$9 -> -283877 | I8: =NR_to_Cash!E$9 -> -105647 | J8: =NR_to_Cash!F$9 -> -78023 | L8: 1 | M8: -21236.95505 | N8: -9172.539616 | O8: -21273.23965 | P8: -5100.778978 | R8: -155327 | S8: -283877 | T8: -105647 | U8: -78023
A9: 2 | G9: =NR_to_Cash!C$9 -> -155327 | H9: =NR_to_Cash!D$9 -> -283877 | I9: =NR_to_Cash!E$9 -> -105647 | J9: =NR_to_Cash!F$9 -> -78023 | L9: 2 | M9: -14301.26828 | N9: 14452.77746 | O9: -7441.008905 | P9: -5680.093341 | R9: -155327 | S9: -283877 | T9: -105647 | U9: -78023
A10: 3 | G10: =NR_to_Cash!C$9 -> -155327 | H10: =NR_to_Cash!D$9 -> -283877 | I10: =NR_to_Cash!E$9 -> -105647 | J10: =NR_to_Cash!F$9 -> -78023 | L10: 3 | M10: 1063.138382 | N10: -26607.31817 | O10: -1026.630568 | P10: -7140.789835 | R10: -155327 | S10: -283877 | T10: -105647 | U10: -78023
A11: 4 | G11: =NR_to_Cash!C$9 -> -155327 | H11: =NR_to_Cash!D$9 -> -283877 | I11: =NR_to_Cash!E$9 -> -105647 | J11: =NR_to_Cash!F$9 -> -78023 | L11: 4 | M11: -21066.63421 | N11: 1662.375385 | O11: -7594.203783 | P11: -18158.35844 | R11: -155327 | S11: -283877 | T11: -105647 | U11: -78023
A12: 5 | G12: =NR_to_Cash!C$9 -> -155327 | H12: =NR_to_Cash!D$9 -> -283877 | I12: =NR_to_Cash!E$9 -> -105647 | J12: =NR_to_Cash!F$9 -> -78023 | L12: 5 | M12: -14424.99256 | N12: 805.6072867 | O12: -13226.27505 | P12: -5705.503084 | R12: -155327 | S12: -283877 | T12: -105647 | U12: -78023
A13: 6 | G13: =NR_to_Cash!C$9 -> -155327 | H13: =NR_to_Cash!D$9 -> -283877 | I13: =NR_to_Cash!E$9 -> -105647 | J13: =NR_to_Cash!F$9 -> -78023 | L13: 6 | M13: -20920.83643 | N13: -14514.76719 | O13: -20756.27996 | P13: -1689.802569 | R13: -155327 | S13: -283877 | T13: -105647 | U13: -78023
A14: 7 | G14: =NR_to_Cash!C$9 -> -155327 | H14: =NR_to_Cash!D$9 -> -283877 | I14: =NR_to_Cash!E$9 -> -105647 | J14: =NR_to_Cash!F$9 -> -78023 | L14: 7 | M14: -5068.978606 | N14: 10778.18386 | O14: -19965.67829 | P14: -21724.76587 | R14: -155327 | S14: -283877 | T14: -105647 | U14: -78023
A15: 8 | G15: =NR_to_Cash!C$9 -> -155327 | H15: =NR_to_Cash!D$9 -> -283877 | I15: =NR_to_Cash!E$9 -> -105647 | J15: =NR_to_Cash!F$9 -> -78023 | L15: 8 | M15: -18043.02513 | N15: 574.751619 | O15: -15096.53217 | P15: 12285.02766 | R15: -155327 | S15: -283877 | T15: -105647 | U15: -78023
A16: 9 | G16: =NR_to_Cash!C$9 -> -155327 | H16: =NR_to_Cash!D$9 -> -283877 | I16: =NR_to_Cash!E$9 -> -105647 | J16: =NR_to_Cash!F$9 -> -78023 | L16: 9 | M16: -16925.09387 | N16: -13252.7041 | O16: -19332.71145 | P16: -8127.745859 | R16: -155327 | S16: -283877 | T16: -105647 | U16: -78023
A17: 10 | G17: =NR_to_Cash!C$9 -> -155327 | H17: =NR_to_Cash!D$9 -> -283877 | I17: =NR_to_Cash!E$9 -> -105647 | J17: =NR_to_Cash!F$9 -> -78023 | L17: 10 | M17: -2789.297704 | N17: -28079.82296 | O17: -17657.12914 | P17: 16613.10552 | R17: -155327 | S17: -283877 | T17: -105647 | U17: -78023
A18: 11 | G18: =NR_to_Cash!C$9 -> -155327 | H18: =NR_to_Cash!D$9 -> -283877 | I18: =NR_to_Cash!E$9 -> -105647 | J18: =NR_to_Cash!F$9 -> -78023 | L18: 11 | M18: -10883.66776 | N18: -27586.49404 | O18: -29282.28913 | P18: -23047.95084 | R18: -155327 | S18: -283877 | T18: -105647 | U18: -78023
A19: 12 | G19: =NR_to_Cash!C$9 -> -155327 | H19: =NR_to_Cash!D$9 -> -283877 | I19: =NR_to_Cash!E$9 -> -105647 | J19: =NR_to_Cash!F$9 -> -78023 | L19: 12 | M19: -2137.767762 | N19: -469.9871696 | O19: 6156.345374 | P19: 11940.7253 | R19: -155327 | S19: -283877 | T19: -105647 | U19: -78023
A20: 13 | G20: =NR_to_Cash!C$9 -> -155327 | H20: =NR_to_Cash!D$9 -> -283877 | I20: =NR_to_Cash!E$9 -> -105647 | J20: =NR_to_Cash!F$9 -> -78023 | L20: 13 | M20: -4577.972483 | N20: -16890.76594 | O20: -19246.9578 | P20: -14270.52629 | R20: -155327 | S20: -283877 | T20: -105647 | U20: -78023
A21: 14 | G21: =NR_to_Cash!C$9 -> -155327 | H21: =NR_to_Cash!D$9 -> -283877 | I21: =NR_to_Cash!E$9 -> -105647 | J21: =NR_to_Cash!F$9 -> -78023 | L21: 14 | M21: -6878.216171 | N21: 8647.683581 | O21: 15046.24809 | P21: -5596.817871 | R21: -155327 | S21: -283877 | T21: -105647 | U21: -78023
A22: 15 | G22: =NR_to_Cash!C$9 -> -155327 | H22: =NR_to_Cash!D$9 -> -283877 | I22: =NR_to_Cash!E$9 -> -105647 | J22: =NR_to_Cash!F$9 -> -78023 | L22: 15 | M22: -11447.41168 | N22: -12527.2145 | O22: 2679.925516 | P22: -17432.95194 | R22: -155327 | S22: -283877 | T22: -105647 | U22: -78023
A23: 16 | G23: =NR_to_Cash!C$9 -> -155327 | H23: =NR_to_Cash!D$9 -> -283877 | I23: =NR_to_Cash!E$9 -> -105647 | J23: =NR_to_Cash!F$9 -> -78023 | L23: 16 | M23: -19374.06521 | N23: -120.467263 | O23: 9217.442379 | P23: 3907.304849 | R23: -155327 | S23: -283877 | T23: -105647 | U23: -78023
A24: 17 | G24: =NR_to_Cash!C$9 -> -155327 | H24: =NR_to_Cash!D$9 -> -283877 | I24: =NR_to_Cash!E$9 -> -105647 | J24: =NR_to_Cash!F$9 -> -78023 | L24: 17 | M24: -5804.027729 | N24: -21169.91027 | O24: 3069.510129 | P24: 23902.70928 | R24: -155327 | S24: -283877 | T24: -105647 | U24: -78023
A25: 18 | G25: =NR_to_Cash!C$9 -> -155327 | H25: =NR_to_Cash!D$9 -> -283877 | I25: =NR_to_Cash!E$9 -> -105647 | J25: =NR_to_Cash!F$9 -> -78023 | L25: 18 | M25: -8659.484867 | N25: -15048.07238 | O25: -17618.35316 | P25: -33719.59814 | R25: -155327 | S25: -283877 | T25: -105647 | U25: -78023
A26: 19 | G26: =NR_to_Cash!C$9 -> -155327 | H26: =NR_to_Cash!D$9 -> -283877 | I26: =NR_to_Cash!E$9 -> -105647 | J26: =NR_to_Cash!F$9 -> -78023 | L26: 19 | M26: -16546.95215 | N26: 3173.629728 | O26: -11391.21191 | P26: 14967.89322 | R26: -155327 | S26: -283877 | T26: -105647 | U26: -78023
A27: 20 | G27: =NR_to_Cash!C$9 -> -155327 | H27: =NR_to_Cash!D$9 -> -283877 | I27: =NR_to_Cash!E$9 -> -105647 | J27: =NR_to_Cash!F$9 -> -78023 | L27: 20 | M27: -12787.13339 | N27: -9109.425403 | O27: -644.4242765 | P27: -13219.38606 | R27: -155327 | S27: -283877 | T27: -105647 | U27: -78023
A28: 21 | G28: =NR_to_Cash!C$9 -> -155327 | H28: =NR_to_Cash!D$9 -> -283877 | I28: =NR_to_Cash!E$9 -> -105647 | J28: =NR_to_Cash!F$9 -> -78023 | L28: 21 | M28: -236.0687635 | N28: 9305.628659 | O28: -9464.570246 | P28: -24068.39834 | R28: -155327 | S28: -283877 | T28: -105647 | U28: -78023
A29: 22 | G29: =NR_to_Cash!C$9 -> -155327 | H29: =NR_to_Cash!D$9 -> -283877 | I29: =NR_to_Cash!E$9 -> -105647 | J29: =NR_to_Cash!F$9 -> -78023 | L29: 22 | M29: -11338.71994 | N29: -5620.647112 | O29: 1491.502439 | P29: -8154.861578 | R29: -155327 | S29: -283877 | T29: -105647 | U29: -78023
A30: 23 | G30: =NR_to_Cash!C$9 -> -155327 | H30: =NR_to_Cash!D$9 -> -283877 | I30: =NR_to_Cash!E$9 -> -105647 | J30: =NR_to_Cash!F$9 -> -78023 | L30: 23 | M30: -19703.58033 | N30: -20331.41599 | O30: -25364.15783 | P30: -9483.976159 | R30: -155327 | S30: -283877 | T30: -105647 | U30: -78023
A31: 24 | G31: =NR_to_Cash!C$9 -> -155327 | H31: =NR_to_Cash!D$9 -> -283877 | I31: =NR_to_Cash!E$9 -> -105647 | J31: =NR_to_Cash!F$9 -> -78023 | L31: 24 | M31: -27356.93535 | N31: -18862.74652 | O31: -3026.942403 | P31: -16242.52941 | R31: -155327 | S31: -283877 | T31: -105647 | U31: -78023
A32: 25 | G32: =NR_to_Cash!C$9 -> -155327 | H32: =NR_to_Cash!D$9 -> -283877 | I32: =NR_to_Cash!E$9 -> -105647 | J32: =NR_to_Cash!F$9 -> -78023 | L32: 25 | M32: -16847.5577 | N32: 6163.801393 | O32: 1658.839495 | P32: 1375.979427 | R32: -155327 | S32: -283877 | T32: -105647 | U32: -78023
A33: 26 | G33: =NR_to_Cash!C$9 -> -155327 | H33: =NR_to_Cash!D$9 -> -283877 | I33: =NR_to_Cash!E$9 -> -105647 | J33: =NR_to_Cash!F$9 -> -78023 | L33: 26 | M33: -14625.6886 | N33: -9635.576199 | O33: -42010.57163 | P33: -20214.00726 | R33: -155327 | S33: -283877 | T33: -105647 | U33: -78023
A34: 27 | G34: =NR_to_Cash!C$9 -> -155327 | H34: =NR_to_Cash!D$9 -> -283877 | I34: =NR_to_Cash!E$9 -> -105647 | J34: =NR_to_Cash!F$9 -> -78023 | L34: 27 | M34: -20676.66009 | N34: -16002.68931 | O34: -11943.1499 | P34: -19728.3131 | R34: -155327 | S34: -283877 | T34: -105647 | U34: -78023
A35: 28 | G35: =NR_to_Cash!C$9 -> -155327 | H35: =NR_to_Cash!D$9 -> -283877 | I35: =NR_to_Cash!E$9 -> -105647 | J35: =NR_to_Cash!F$9 -> -78023 | L35: 28 | M35: -2744.562084 | N35: -14448.94418 | O35: -6923.541115 | P35: -14526.77211 | R35: -155327 | S35: -283877 | T35: -105647 | U35: -78023
A36: 29 | G36: =NR_to_Cash!C$9 -> -155327 | H36: =NR_to_Cash!D$9 -> -283877 | I36: =NR_to_Cash!E$9 -> -105647 | J36: =NR_to_Cash!F$9 -> -78023 | L36: 29 | M36: -10830.16298 | N36: -9517.542344 | O36: -7487.866906 | P36: -32993.02456 | R36: -155327 | S36: -283877 | T36: -105647 | U36: -78023
A37: 30 | G37: =NR_to_Cash!C$9 -> -155327 | H37: =NR_to_Cash!D$9 -> -283877 | I37: =NR_to_Cash!E$9 -> -105647 | J37: =NR_to_Cash!F$9 -> -78023 | L37: 30 | M37: -24892.19875 | N37: -7969.602585 | O37: -2742.820509 | P37: -3330.770584 | R37: -155327 | S37: -283877 | T37: -105647 | U37: -78023
A38: 31 | G38: =NR_to_Cash!C$9 -> -155327 | H38: =NR_to_Cash!D$9 -> -283877 | I38: =NR_to_Cash!E$9 -> -105647 | J38: =NR_to_Cash!F$9 -> -78023 | L38: 31 | M38: -5009.323982 | N38: -19205.96064 | O38: 1663.182868 | P38: -21607.72491 | R38: -155327 | S38: -283877 | T38: -105647 | U38: -78023
A39: 32 | G39: =NR_to_Cash!C$9 -> -155327 | H39: =NR_to_Cash!D$9 -> -283877 | I39: =NR_to_Cash!E$9 -> -105647 | J39: =NR_to_Cash!F$9 -> -78023 | L39: 32 | M39: -17704.92598 | N39: 12204.95169 | O39: -77.44232789 | P39: -7089.011313 | R39: -155327 | S39: -283877 | T39: -105647 | U39: -78023
A40: 33 | G40: =NR_to_Cash!C$9 -> -155327 | H40: =NR_to_Cash!D$9 -> -283877 | I40: =NR_to_Cash!E$9 -> -105647 | J40: =NR_to_Cash!F$9 -> -78023 | L40: 33 | M40: -11326.35411 | N40: -7130.520274 | O40: -12200.23634 | P40: 459.6778419 | R40: -155327 | S40: -283877 | T40: -105647 | U40: -78023
A41: 34 | G41: =NR_to_Cash!C$9 -> -155327 | H41: =NR_to_Cash!D$9 -> -283877 | I41: =NR_to_Cash!E$9 -> -105647 | J41: =NR_to_Cash!F$9 -> -78023 | L41: 34 | M41: -9539.90255 | N41: -4347.294928 | O41: -27388.99165 | P41: -9234.422471 | R41: -155327 | S41: -283877 | T41: -105647 | U41: -78023
A42: 35 | G42: =NR_to_Cash!C$9 -> -155327 | H42: =NR_to_Cash!D$9 -> -283877 | I42: =NR_to_Cash!E$9 -> -105647 | J42: =NR_to_Cash!F$9 -> -78023 | L42: 35 | M42: -9546.254409 | N42: -33.34386962 | O42: 3060.952958 | P42: -26870.81871 | R42: -155327 | S42: -283877 | T42: -105647 | U42: -78023
A43: 36 | G43: =NR_to_Cash!C$9 -> -155327 | H43: =NR_to_Cash!D$9 -> -283877 | I43: =NR_to_Cash!E$9 -> -105647 | J43: =NR_to_Cash!F$9 -> -78023 | L43: 36 | M43: -4774.178935 | N43: -10180.1612 | O43: -2731.206455 | P43: 14349.86196 | R43: -155327 | S43: -283877 | T43: -105647 | U43: -78023
A44: 37 | G44: =NR_to_Cash!C$9 -> -155327 | H44: =NR_to_Cash!D$9 -> -283877 | I44: =NR_to_Cash!E$9 -> -105647 | J44: =NR_to_Cash!F$9 -> -78023 | L44: 37 | M44: -20597.4371 | N44: -31957.8354 | O44: -22193.62149 | P44: 4208.930309 | R44: -155327 | S44: -283877 | T44: -105647 | U44: -78023
A45: 38 | G45: =NR_to_Cash!C$9 -> -155327 | H45: =NR_to_Cash!D$9 -> -283877 | I45: =NR_to_Cash!E$9 -> -105647 | J45: =NR_to_Cash!F$9 -> -78023 | L45: 38 | M45: -26277.0417 | N45: -11085.81445 | O45: -11839.95957 | P45: -7332.250271 | R45: -155327 | S45: -283877 | T45: -105647 | U45: -78023
A46: 39 | G46: =NR_to_Cash!C$9 -> -155327 | H46: =NR_to_Cash!D$9 -> -283877 | I46: =NR_to_Cash!E$9 -> -105647 | J46: =NR_to_Cash!F$9 -> -78023 | L46: 39 | M46: 3740.629293 | N46: -30422.52068 | O46: -25454.9168 | P46: -18666.79189 | R46: -155327 | S46: -283877 | T46: -105647 | U46: -78023
A47: 40 | G47: =NR_to_Cash!C$9 -> -155327 | H47: =NR_to_Cash!D$9 -> -283877 | I47: =NR_to_Cash!E$9 -> -105647 | J47: =NR_to_Cash!F$9 -> -78023 | L47: 40 | M47: -13380.68796 | N47: 6779.85293 | O47: -23547.34365 | P47: 1633.258867 | R47: -155327 | S47: -283877 | T47: -105647 | U47: -78023
A48: 41 | G48: =NR_to_Cash!C$9 -> -155327 | H48: =NR_to_Cash!D$9 -> -283877 | I48: =NR_to_Cash!E$9 -> -105647 | J48: =NR_to_Cash!F$9 -> -78023 | L48: 41 | M48: -9332.610894 | N48: -3786.391257 | O48: -16558.58245 | P48: -9210.643149 | R48: -155327 | S48: -283877 | T48: -105647 | U48: -78023
A49: 42 | G49: =NR_to_Cash!C$9 -> -155327 | H49: =NR_to_Cash!D$9 -> -283877 | I49: =NR_to_Cash!E$9 -> -105647 | J49: =NR_to_Cash!F$9 -> -78023 | L49: 42 | M49: -26502.8579 | N49: 1474.182734 | O49: -8412.122503 | P49: -2982.147855 | R49: -155327 | S49: -283877 | T49: -105647 | U49: -78023
A50: 43 | G50: =NR_to_Cash!C$9 -> -155327 | H50: =NR_to_Cash!D$9 -> -283877 | I50: =NR_to_Cash!E$9 -> -105647 | J50: =NR_to_Cash!F$9 -> -78023 | L50: 43 | M50: -31177.48032 | N50: 7545.303403 | O50: -4279.115826 | P50: -7197.473756 | R50: -155327 | S50: -283877 | T50: -105647 | U50: -78023
A51: 44 | G51: =NR_to_Cash!C$9 -> -155327 | H51: =NR_to_Cash!D$9 -> -283877 | I51: =NR_to_Cash!E$9 -> -105647 | J51: =NR_to_Cash!F$9 -> -78023 | L51: 44 | M51: -21581.39615 | N51: -14955.94436 | O51: -8646.27519 | P51: -7599.414649 | R51: -155327 | S51: -283877 | T51: -105647 | U51: -78023
A52: 45 | G52: =NR_to_Cash!C$9 -> -155327 | H52: =NR_to_Cash!D$9 -> -283877 | I52: =NR_to_Cash!E$9 -> -105647 | J52: =NR_to_Cash!F$9 -> -78023 | L52: 45 | M52: -24881.06794 | N52: 1621.756355 | O52: 1912.649457 | P52: -40681.84343 | R52: -155327 | S52: -283877 | T52: -105647 | U52: -78023
A53: 46 | G53: =NR_to_Cash!C$9 -> -155327 | H53: =NR_to_Cash!D$9 -> -283877 | I53: =NR_to_Cash!E$9 -> -105647 | J53: =NR_to_Cash!F$9 -> -78023 | L53: 46 | M53: -16363.44753 | N53: 23942.46273 | O53: -24755.85358 | P53: -4077.997966 | R53: -155327 | S53: -283877 | T53: -105647 | U53: -78023
A54: 47 | G54: =NR_to_Cash!C$9 -> -155327 | H54: =NR_to_Cash!D$9 -> -283877 | I54: =NR_to_Cash!E$9 -> -105647 | J54: =NR_to_Cash!F$9 -> -78023 | L54: 47 | M54: -20096.97511 | N54: -31068.571 | O54: -17323.96086 | P54: -20127.21103 | R54: -155327 | S54: -283877 | T54: -105647 | U54: -78023
A55: 48 | G55: =NR_to_Cash!C$9 -> -155327 | H55: =NR_to_Cash!D$9 -> -283877 | I55: =NR_to_Cash!E$9 -> -105647 | J55: =NR_to_Cash!F$9 -> -78023 | L55: 48 | M55: -9190.167386 | N55: -23852.63797 | O55: -10557.5561 | P55: -8834.073052 | R55: -155327 | S55: -283877 | T55: -105647 | U55: -78023
A56: 49 | G56: =NR_to_Cash!C$9 -> -155327 | H56: =NR_to_Cash!D$9 -> -283877 | I56: =NR_to_Cash!E$9 -> -105647 | J56: =NR_to_Cash!F$9 -> -78023 | L56: 49 | M56: -23615.39612 | N56: -6149.183743 | O56: -18358.62424 | P56: -15337.83758 | R56: -155327 | S56: -283877 | T56: -105647 | U56: -78023
A57: 50 | G57: =NR_to_Cash!C$9 -> -155327 | H57: =NR_to_Cash!D$9 -> -283877 | I57: =NR_to_Cash!E$9 -> -105647 | J57: =NR_to_Cash!F$9 -> -78023 | L57: 50 | M57: -24362.79346 | N57: -22250.02182 | O57: -35009.29954 | P57: 8905.79459 | R57: -155327 | S57: -283877 | T57: -105647 | U57: -78023
A58: 51 | G58: =NR_to_Cash!C$9 -> -155327 | H58: =NR_to_Cash!D$9 -> -283877 | I58: =NR_to_Cash!E$9 -> -105647 | J58: =NR_to_Cash!F$9 -> -78023 | L58: 51 | M58: -6835.909542 | N58: -505.2533281 | O58: -22858.436 | P58: -22793.88486 | R58: -155327 | S58: -283877 | T58: -105647 | U58: -78023
A59: 52 | G59: =NR_to_Cash!C$9 -> -155327 | H59: =NR_to_Cash!D$9 -> -283877 | I59: =NR_to_Cash!E$9 -> -105647 | J59: =NR_to_Cash!F$9 -> -78023 | L59: 52 | M59: -8999.808258 | N59: -20264.13497 | O59: -24039.25802 | P59: -16077.05348 | R59: -155327 | S59: -283877 | T59: -105647 | U59: -78023
A60: 53 | G60: =NR_to_Cash!C$9 -> -155327 | H60: =NR_to_Cash!D$9 -> -283877 | I60: =NR_to_Cash!E$9 -> -105647 | J60: =NR_to_Cash!F$9 -> -78023 | L60: 53 | M60: -26244.14967 | N60: -24674.97583 | O60: -22343.72124 | P60: -9625.596632 | R60: -155327 | S60: -283877 | T60: -105647 | U60: -78023
A61: 54 | G61: =NR_to_Cash!C$9 -> -155327 | H61: =NR_to_Cash!D$9 -> -283877 | I61: =NR_to_Cash!E$9 -> -105647 | J61: =NR_to_Cash!F$9 -> -78023 | L61: 54 | M61: -15001.02496 | N61: 4015.723329 | O61: -11587.62135 | P61: -28828.32755 | R61: -155327 | S61: -283877 | T61: -105647 | U61: -78023
A62: 55 | G62: =NR_to_Cash!C$9 -> -155327 | H62: =NR_to_Cash!D$9 -> -283877 | I62: =NR_to_Cash!E$9 -> -105647 | J62: =NR_to_Cash!F$9 -> -78023 | L62: 55 | M62: -1807.017293 | N62: -21627.57338 | O62: -29444.45824 | P62: -10460.34645 | R62: -155327 | S62: -283877 | T62: -105647 | U62: -78023
A63: 56 | G63: =NR_to_Cash!C$9 -> -155327 | H63: =NR_to_Cash!D$9 -> -283877 | I63: =NR_to_Cash!E$9 -> -105647 | J63: =NR_to_Cash!F$9 -> -78023 | L63: 56 | M63: -23071.36352 | N63: -22201.87323 | O63: -2811.293559 | P63: 1448.758293 | R63: -155327 | S63: -283877 | T63: -105647 | U63: -78023
A64: 57 | G64: =NR_to_Cash!C$9 -> -155327 | H64: =NR_to_Cash!D$9 -> -283877 | I64: =NR_to_Cash!E$9 -> -105647 | J64: =NR_to_Cash!F$9 -> -78023 | L64: 57 | M64: -25199.08543 | N64: 4549.621484 | O64: -8298.987169 | P64: 13352.51231 | R64: -155327 | S64: -283877 | T64: -105647 | U64: -78023
A65: 58 | G65: =NR_to_Cash!C$9 -> -155327 | H65: =NR_to_Cash!D$9 -> -283877 | I65: =NR_to_Cash!E$9 -> -105647 | J65: =NR_to_Cash!F$9 -> -78023 | L65: 58 | M65: -4137.929769 | N65: -28473.07149 | O65: -7756.913165 | P65: -6689.016288 | R65: -155327 | S65: -283877 | T65: -105647 | U65: -78023
A66: 59 | G66: =NR_to_Cash!C$9 -> -155327 | H66: =NR_to_Cash!D$9 -> -283877 | I66: =NR_to_Cash!E$9 -> -105647 | J66: =NR_to_Cash!F$9 -> -78023 | L66: 59 | M66: -19522.76298 | N66: -311.3045117 | O66: -8711.129117 | P66: -17590.78091 | R66: -155327 | S66: -283877 | T66: -105647 | U66: -78023
A67: 60 | G67: =NR_to_Cash!C$9 -> -155327 | H67: =NR_to_Cash!D$9 -> -283877 | I67: =NR_to_Cash!E$9 -> -105647 | J67: =NR_to_Cash!F$9 -> -78023 | L67: 60 | M67: -14168.00349 | N67: 422.3607448 | O67: 2108.027418 | P67: 7450.056571 | R67: -155327 | S67: -283877 | T67: -105647 | U67: -78023
A68: 61 | G68: =NR_to_Cash!C$9 -> -155327 | H68: =NR_to_Cash!D$9 -> -283877 | I68: =NR_to_Cash!E$9 -> -105647 | J68: =NR_to_Cash!F$9 -> -78023 | L68: 61 | M68: 422.1289198 | N68: -6039.249498 | O68: -18000.00932 | P68: 10721.375 | R68: -155327 | S68: -283877 | T68: -105647 | U68: -78023
A69: 62 | G69: =NR_to_Cash!C$9 -> -155327 | H69: =NR_to_Cash!D$9 -> -283877 | I69: =NR_to_Cash!E$9 -> -105647 | J69: =NR_to_Cash!F$9 -> -78023 | L69: 62 | M69: -13512.66233 | N69: -21378.90098 | O69: -31176.24757 | P69: -3081.550897 | R69: -155327 | S69: -283877 | T69: -105647 | U69: -78023
A70: 63 | G70: =NR_to_Cash!C$9 -> -155327 | H70: =NR_to_Cash!D$9 -> -283877 | I70: =NR_to_Cash!E$9 -> -105647 | J70: =NR_to_Cash!F$9 -> -78023 | L70: 63 | M70: -10549.37197 | N70: -774.5588309 | O70: -327.0651736 | P70: -8592.415981 | R70: -155327 | S70: -283877 | T70: -105647 | U70: -78023
A71: 64 | G71: =NR_to_Cash!C$9 -> -155327 | H71: =NR_to_Cash!D$9 -> -283877 | I71: =NR_to_Cash!E$9 -> -105647 | J71: =NR_to_Cash!F$9 -> -78023 | L71: 64 | M71: -3608.399477 | N71: -18346.00463 | O71: -12165.64408 | P71: -32034.80895 | R71: -155327 | S71: -283877 | T71: -105647 | U71: -78023
A72: 65 | G72: =NR_to_Cash!C$9 -> -155327 | H72: =NR_to_Cash!D$9 -> -283877 | I72: =NR_to_Cash!E$9 -> -105647 | J72: =NR_to_Cash!F$9 -> -78023 | L72: 65 | M72: -511.7116441 | N72: -12456.92116 | O72: -29750.39052 | P72: -13854.37555 | R72: -155327 | S72: -283877 | T72: -105647 | U72: -78023
A73: 66 | G73: =NR_to_Cash!C$9 -> -155327 | H73: =NR_to_Cash!D$9 -> -283877 | I73: =NR_to_Cash!E$9 -> -105647 | J73: =NR_to_Cash!F$9 -> -78023 | L73: 66 | M73: -8185.278956 | N73: 15153.08263 | O73: -5378.678792 | P73: -29968.97792 | R73: -155327 | S73: -283877 | T73: -105647 | U73: -78023
A74: 67 | G74: =NR_to_Cash!C$9 -> -155327 | H74: =NR_to_Cash!D$9 -> -283877 | I74: =NR_to_Cash!E$9 -> -105647 | J74: =NR_to_Cash!F$9 -> -78023 | L74: 67 | M74: -21216.65581 | N74: 10852.64015 | O74: 2519.702846 | P74: -16470.0571 | R74: -155327 | S74: -283877 | T74: -105647 | U74: -78023
A75: 68 | G75: =NR_to_Cash!C$9 -> -155327 | H75: =NR_to_Cash!D$9 -> -283877 | I75: =NR_to_Cash!E$9 -> -105647 | J75: =NR_to_Cash!F$9 -> -78023 | L75: 68 | M75: -11356.84666 | N75: -2931.106265 | O75: -8700.139338 | P75: -10846.36346 | R75: -155327 | S75: -283877 | T75: -105647 | U75: -78023
A76: 69 | G76: =NR_to_Cash!C$9 -> -155327 | H76: =NR_to_Cash!D$9 -> -283877 | I76: =NR_to_Cash!E$9 -> -105647 | J76: =NR_to_Cash!F$9 -> -78023 | L76: 69 | M76: -18339.6992 | N76: -537.307931 | O76: 12208.88051 | P76: 1613.91383 | R76: -155327 | S76: -283877 | T76: -105647 | U76: -78023
A77: 70 | G77: =NR_to_Cash!C$9 -> -155327 | H77: =NR_to_Cash!D$9 -> -283877 | I77: =NR_to_Cash!E$9 -> -105647 | J77: =NR_to_Cash!F$9 -> -78023 | L77: 70 | M77: -10305.38871 | N77: 2640.821702 | O77: -13252.16529 | P77: 1477.789036 | R77: -155327 | S77: -283877 | T77: -105647 | U77: -78023
A78: 71 | G78: =NR_to_Cash!C$9 -> -155327 | H78: =NR_to_Cash!D$9 -> -283877 | I78: =NR_to_Cash!E$9 -> -105647 | J78: =NR_to_Cash!F$9 -> -78023 | L78: 71 | M78: -18253.93167 | N78: 1257.257565 | O78: -4354.170722 | P78: -16505.00132 | R78: -155327 | S78: -283877 | T78: -105647 | U78: -78023
A79: 72 | G79: =NR_to_Cash!C$9 -> -155327 | H79: =NR_to_Cash!D$9 -> -283877 | I79: =NR_to_Cash!E$9 -> -105647 | J79: =NR_to_Cash!F$9 -> -78023 | L79: 72 | M79: -14816.94378 | N79: 6619.165868 | O79: -18359.18979 | P79: -9338.932256 | R79: -155327 | S79: -283877 | T79: -105647 | U79: -78023
A80: 73 | G80: =NR_to_Cash!C$9 -> -155327 | H80: =NR_to_Cash!D$9 -> -283877 | I80: =NR_to_Cash!E$9 -> -105647 | J80: =NR_to_Cash!F$9 -> -78023 | L80: 73 | M80: -3503.043876 | N80: 2328.253108 | O80: -21332.24409 | P80: -35287.24187 | R80: -155327 | S80: -283877 | T80: -105647 | U80: -78023
A81: 74 | G81: =NR_to_Cash!C$9 -> -155327 | H81: =NR_to_Cash!D$9 -> -283877 | I81: =NR_to_Cash!E$9 -> -105647 | J81: =NR_to_Cash!F$9 -> -78023 | L81: 74 | M81: -4698.499594 | N81: -16394.04328 | O81: -9787.073079 | P81: -19819.02595 | R81: -155327 | S81: -283877 | T81: -105647 | U81: -78023
A82: 75 | G82: =NR_to_Cash!C$9 -> -155327 | H82: =NR_to_Cash!D$9 -> -283877 | I82: =NR_to_Cash!E$9 -> -105647 | J82: =NR_to_Cash!F$9 -> -78023 | L82: 75 | M82: 4693.841974 | N82: -13842.77856 | O82: 9176.815609 | P82: -24445.29981 | R82: -155327 | S82: -283877 | T82: -105647 | U82: -78023
A83: 76 | G83: =NR_to_Cash!C$9 -> -155327 | H83: =NR_to_Cash!D$9 -> -283877 | I83: =NR_to_Cash!E$9 -> -105647 | J83: =NR_to_Cash!F$9 -> -78023 | L83: 76 | M83: 3498.120059 | N83: -10707.53457 | O83: 1579.303803 | P83: -8215.92803 | R83: -155327 | S83: -283877 | T83: -105647 | U83: -78023
A84: 77 | G84: =NR_to_Cash!C$9 -> -155327 | H84: =NR_to_Cash!D$9 -> -283877 | I84: =NR_to_Cash!E$9 -> -105647 | J84: =NR_to_Cash!F$9 -> -78023 | L84: 77 | M84: -28807.39916 | N84: -17212.60029 | O84: -14317.3238 | P84: -7008.159769 | R84: -155327 | S84: -283877 | T84: -105647 | U84: -78023
A85: 78 | G85: =NR_to_Cash!C$9 -> -155327 | H85: =NR_to_Cash!D$9 -> -283877 | I85: =NR_to_Cash!E$9 -> -105647 | J85: =NR_to_Cash!F$9 -> -78023 | L85: 78 | M85: -32901.09759 | N85: -14778.20922 | O85: -42060.0262 | P85: -23059.17815 | R85: -155327 | S85: -283877 | T85: -105647 | U85: -78023
A86: 79 | G86: =NR_to_Cash!C$9 -> -155327 | H86: =NR_to_Cash!D$9 -> -283877 | I86: =NR_to_Cash!E$9 -> -105647 | J86: =NR_to_Cash!F$9 -> -78023 | L86: 79 | M86: -8241.25253 | N86: -1838.112185 | O86: -12454.03006 | P86: 1991.79229 | R86: -155327 | S86: -283877 | T86: -105647 | U86: -78023
A87: 80 | G87: =NR_to_Cash!C$9 -> -155327 | H87: =NR_to_Cash!D$9 -> -283877 | I87: =NR_to_Cash!E$9 -> -105647 | J87: =NR_to_Cash!F$9 -> -78023 | L87: 80 | M87: -5622.37268 | N87: -5972.80519 | O87: -38412.0887 | P87: -13883.4815 | R87: -155327 | S87: -283877 | T87: -105647 | U87: -78023
A88: 81 | G88: =NR_to_Cash!C$9 -> -155327 | H88: =NR_to_Cash!D$9 -> -283877 | I88: =NR_to_Cash!E$9 -> -105647 | J88: =NR_to_Cash!F$9 -> -78023 | L88: 81 | M88: -20232.48852 | N88: -26066.24836 | O88: -6458.59245 | P88: -1875.531773 | R88: -155327 | S88: -283877 | T88: -105647 | U88: -78023
A89: 82 | G89: =NR_to_Cash!C$9 -> -155327 | H89: =NR_to_Cash!D$9 -> -283877 | I89: =NR_to_Cash!E$9 -> -105647 | J89: =NR_to_Cash!F$9 -> -78023 | L89: 82 | M89: -27446.59485 | N89: -24951.34504 | O89: -11460.91218 | P89: -32189.39665 | R89: -155327 | S89: -283877 | T89: -105647 | U89: -78023
A90: 83 | G90: =NR_to_Cash!C$9 -> -155327 | H90: =NR_to_Cash!D$9 -> -283877 | I90: =NR_to_Cash!E$9 -> -105647 | J90: =NR_to_Cash!F$9 -> -78023 | L90: 83 | M90: -12728.87632 | N90: 15957.79345 | O90: -23773.09739 | P90: -17637.36675 | R90: -155327 | S90: -283877 | T90: -105647 | U90: -78023
A91: 84 | G91: =NR_to_Cash!C$9 -> -155327 | H91: =NR_to_Cash!D$9 -> -283877 | I91: =NR_to_Cash!E$9 -> -105647 | J91: =NR_to_Cash!F$9 -> -78023 | L91: 84 | M91: 70.31747613 | N91: -24200.71161 | O91: -14999.9119 | P91: -19835.86505 | R91: -155327 | S91: -283877 | T91: -105647 | U91: -78023
A92: 85 | G92: =NR_to_Cash!C$9 -> -155327 | H92: =NR_to_Cash!D$9 -> -283877 | I92: =NR_to_Cash!E$9 -> -105647 | J92: =NR_to_Cash!F$9 -> -78023 | L92: 85 | M92: -24268.18067 | N92: -6730.16889 | O92: -10744.84472 | P92: -27727.60593 | R92: -155327 | S92: -283877 | T92: -105647 | U92: -78023
A93: 86 | G93: =NR_to_Cash!C$9 -> -155327 | H93: =NR_to_Cash!D$9 -> -283877 | I93: =NR_to_Cash!E$9 -> -105647 | J93: =NR_to_Cash!F$9 -> -78023 | L93: 86 | M93: -12821.08323 | N93: -9428.126808 | O93: 13918.39426 | P93: -15375.97972 | R93: -155327 | S93: -283877 | T93: -105647 | U93: -78023
A94: 87 | G94: =NR_to_Cash!C$9 -> -155327 | H94: =NR_to_Cash!D$9 -> -283877 | I94: =NR_to_Cash!E$9 -> -105647 | J94: =NR_to_Cash!F$9 -> -78023 | L94: 87 | M94: -18127.45765 | N94: -10520.23465 | O94: -28156.30587 | P94: -3317.23014 | R94: -155327 | S94: -283877 | T94: -105647 | U94: -78023
A95: 88 | G95: =NR_to_Cash!C$9 -> -155327 | H95: =NR_to_Cash!D$9 -> -283877 | I95: =NR_to_Cash!E$9 -> -105647 | J95: =NR_to_Cash!F$9 -> -78023 | L95: 88 | M95: -20421.13493 | N95: -28964.38687 | O95: -1655.180266 | P95: -15137.11825 | R95: -155327 | S95: -283877 | T95: -105647 | U95: -78023
A96: 89 | G96: =NR_to_Cash!C$9 -> -155327 | H96: =NR_to_Cash!D$9 -> -283877 | I96: =NR_to_Cash!E$9 -> -105647 | J96: =NR_to_Cash!F$9 -> -78023 | L96: 89 | M96: -11326.06407 | N96: -6549.281476 | O96: 7612.370155 | P96: -6909.463541 | R96: -155327 | S96: -283877 | T96: -105647 | U96: -78023
A97: 90 | G97: =NR_to_Cash!C$9 -> -155327 | H97: =NR_to_Cash!D$9 -> -283877 | I97: =NR_to_Cash!E$9 -> -105647 | J97: =NR_to_Cash!F$9 -> -78023 | L97: 90 | M97: -17619.93507 | N97: -25518.78811 | O97: -5704.728987 | P97: -5305.75858 | R97: -155327 | S97: -283877 | T97: -105647 | U97: -78023
A98: 91 | G98: =NR_to_Cash!C$9 -> -155327 | H98: =NR_to_Cash!D$9 -> -283877 | I98: =NR_to_Cash!E$9 -> -105647 | J98: =NR_to_Cash!F$9 -> -78023 | L98: 91 | M98: -15639.17506 | N98: -449.8608974 | O98: 20264.99728 | P98: 5670.464004 | R98: -155327 | S98: -283877 | T98: -105647 | U98: -78023
A99: 92 | G99: =NR_to_Cash!C$9 -> -155327 | H99: =NR_to_Cash!D$9 -> -283877 | I99: =NR_to_Cash!E$9 -> -105647 | J99: =NR_to_Cash!F$9 -> -78023 | L99: 92 | M99: -4316.266338 | N99: 11858.22505 | O99: -8607.445768 | P99: -12735.20199 | R99: -155327 | S99: -283877 | T99: -105647 | U99: -78023
A100: 93 | G100: =NR_to_Cash!C$9 -> -155327 | H100: =NR_to_Cash!D$9 -> -283877 | I100: =NR_to_Cash!E$9 -> -105647 | J100: =NR_to_Cash!F$9 -> -78023 | L100: 93 | M100: -7255.666167 | N100: 4123.439747 | O100: -1062.162319 | P100: -25976.85539 | R100: -155327 | S100: -283877 | T100: -105647 | U100: -78023
A101: 94 | G101: =NR_to_Cash!C$9 -> -155327 | H101: =NR_to_Cash!D$9 -> -283877 | I101: =NR_to_Cash!E$9 -> -105647 | J101: =NR_to_Cash!F$9 -> -78023 | L101: 94 | M101: -2574.139549 | N101: -13645.90691 | O101: -18701.62971 | P101: 10816.18612 | R101: -155327 | S101: -283877 | T101: -105647 | U101: -78023
A102: 95 | G102: =NR_to_Cash!C$9 -> -155327 | H102: =NR_to_Cash!D$9 -> -283877 | I102: =NR_to_Cash!E$9 -> -105647 | J102: =NR_to_Cash!F$9 -> -78023 | L102: 95 | M102: -3174.802384 | N102: -6583.294885 | O102: 224.947361 | P102: -2557.025277 | R102: -155327 | S102: -283877 | T102: -105647 | U102: -78023
A103: 96 | G103: =NR_to_Cash!C$9 -> -155327 | H103: =NR_to_Cash!D$9 -> -283877 | I103: =NR_to_Cash!E$9 -> -105647 | J103: =NR_to_Cash!F$9 -> -78023 | L103: 96 | M103: -8334.193265 | N103: -11442.6978 | O103: -6907.274502 | P103: -46466.81969 | R103: -155327 | S103: -283877 | T103: -105647 | U103: -78023
A104: 97 | G104: =NR_to_Cash!C$9 -> -155327 | H104: =NR_to_Cash!D$9 -> -283877 | I104: =NR_to_Cash!E$9 -> -105647 | J104: =NR_to_Cash!F$9 -> -78023 | L104: 97 | M104: -17880.9322 | N104: -19519.49555 | O104: -22995.7852 | P104: -19882.3384 | R104: -155327 | S104: -283877 | T104: -105647 | U104: -78023
A105: 98 | G105: =NR_to_Cash!C$9 -> -155327 | H105: =NR_to_Cash!D$9 -> -283877 | I105: =NR_to_Cash!E$9 -> -105647 | J105: =NR_to_Cash!F$9 -> -78023 | L105: 98 | M105: -14423.95524 | N105: 1595.787572 | O105: -2134.339156 | P105: 5464.63273 | R105: -155327 | S105: -283877 | T105: -105647 | U105: -78023
A106: 99 | G106: =NR_to_Cash!C$9 -> -155327 | H106: =NR_to_Cash!D$9 -> -283877 | I106: =NR_to_Cash!E$9 -> -105647 | J106: =NR_to_Cash!F$9 -> -78023 | L106: 99 | M106: -14944.74981 | N106: -8758.253375 | O106: 6988.952588 | P106: 16365.95698 | R106: -155327 | S106: -283877 | T106: -105647 | U106: -78023
A107: 100 | G107: =NR_to_Cash!C$9 -> -155327 | H107: =NR_to_Cash!D$9 -> -283877 | I107: =NR_to_Cash!E$9 -> -105647 | J107: =NR_to_Cash!F$9 -> -78023 | L107: 100 | M107: -19157.89263 | N107: -24274.80068 | O107: -16349.03393 | P107: 5317.32077 | R107: -155327 | S107: -283877 | T107: -105647 | U107: -78023
A108: 101 | G108: =NR_to_Cash!C$9 -> -155327 | H108: =NR_to_Cash!D$9 -> -283877 | I108: =NR_to_Cash!E$9 -> -105647 | J108: =NR_to_Cash!F$9 -> -78023 | L108: 101 | M108: 2493.234929 | N108: 6133.951488 | O108: -11613.0752 | P108: -18526.65052 | R108: -155327 | S108: -283877 | T108: -105647 | U108: -78023
A109: 102 | G109: =NR_to_Cash!C$9 -> -155327 | H109: =NR_to_Cash!D$9 -> -283877 | I109: =NR_to_Cash!E$9 -> -105647 | J109: =NR_to_Cash!F$9 -> -78023 | L109: 102 | M109: -15285.99065 | N109: -11580.8087 | O109: -14355.20649 | P109: 3502.159004 | R109: -155327 | S109: -283877 | T109: -105647 | U109: -78023
A110: 103 | G110: =NR_to_Cash!C$9 -> -155327 | H110: =NR_to_Cash!D$9 -> -283877 | I110: =NR_to_Cash!E$9 -> -105647 | J110: =NR_to_Cash!F$9 -> -78023 | L110: 103 | M110: -16994.46234 | N110: -22243.23142 | O110: -12051.98366 | P110: -18182.67692 | R110: -155327 | S110: -283877 | T110: -105647 | U110: -78023
A111: 104 | G111: =NR_to_Cash!C$9 -> -155327 | H111: =NR_to_Cash!D$9 -> -283877 | I111: =NR_to_Cash!E$9 -> -105647 | J111: =NR_to_Cash!F$9 -> -78023 | L111: 104 | M111: -15791.87396 | N111: -6157.814767 | O111: 1973.846715 | P111: -18401.74339 | R111: -155327 | S111: -283877 | T111: -105647 | U111: -78023
A112: 105 | G112: =NR_to_Cash!C$9 -> -155327 | H112: =NR_to_Cash!D$9 -> -283877 | I112: =NR_to_Cash!E$9 -> -105647 | J112: =NR_to_Cash!F$9 -> -78023 | L112: 105 | M112: -13547.00912 | N112: 13799.07169 | O112: -16086.18786 | P112: -2639.866899 | R112: -155327 | S112: -283877 | T112: -105647 | U112: -78023
A113: 106 | G113: =NR_to_Cash!C$9 -> -155327 | H113: =NR_to_Cash!D$9 -> -283877 | I113: =NR_to_Cash!E$9 -> -105647 | J113: =NR_to_Cash!F$9 -> -78023 | L113: 106 | M113: -23075.1594 | N113: -10003.65748 | O113: 7760.382862 | P113: -19074.15502 | R113: -155327 | S113: -283877 | T113: -105647 | U113: -78023
A114: 107 | G114: =NR_to_Cash!C$9 -> -155327 | H114: =NR_to_Cash!D$9 -> -283877 | I114: =NR_to_Cash!E$9 -> -105647 | J114: =NR_to_Cash!F$9 -> -78023 | L114: 107 | M114: -9900.909045 | N114: -19469.76499 | O114: -11458.36735 | P114: -1560.25133 | R114: -155327 | S114: -283877 | T114: -105647 | U114: -78023
A115: 108 | G115: =NR_to_Cash!C$9 -> -155327 | H115: =NR_to_Cash!D$9 -> -283877 | I115: =NR_to_Cash!E$9 -> -105647 | J115: =NR_to_Cash!F$9 -> -78023 | L115: 108 | M115: -14176.80617 | N115: -8229.701408 | O115: 2555.913891 | P115: 2260.297824 | R115: -155327 | S115: -283877 | T115: -105647 | U115: -78023
A116: 109 | G116: =NR_to_Cash!C$9 -> -155327 | H116: =NR_to_Cash!D$9 -> -283877 | I116: =NR_to_Cash!E$9 -> -105647 | J116: =NR_to_Cash!F$9 -> -78023 | L116: 109 | M116: -5050.839018 | N116: -6582.320247 | O116: 7302.35301 | P116: 4633.387932 | R116: -155327 | S116: -283877 | T116: -105647 | U116: -78023
A117: 110 | G117: =NR_to_Cash!C$9 -> -155327 | H117: =NR_to_Cash!D$9 -> -283877 | I117: =NR_to_Cash!E$9 -> -105647 | J117: =NR_to_Cash!F$9 -> -78023 | L117: 110 | M117: -10605.7118 | N117: -24005.65401 | O117: -21437.12564 | P117: -19098.32114 | R117: -155327 | S117: -283877 | T117: -105647 | U117: -78023
A118: 111 | G118: =NR_to_Cash!C$9 -> -155327 | H118: =NR_to_Cash!D$9 -> -283877 | I118: =NR_to_Cash!E$9 -> -105647 | J118: =NR_to_Cash!F$9 -> -78023 | L118: 111 | M118: -812.9766073 | N118: -9318.846456 | O118: -19853.18111 | P118: -29180.7782 | R118: -155327 | S118: -283877 | T118: -105647 | U118: -78023
A119: 112 | G119: =NR_to_Cash!C$9 -> -155327 | H119: =NR_to_Cash!D$9 -> -283877 | I119: =NR_to_Cash!E$9 -> -105647 | J119: =NR_to_Cash!F$9 -> -78023 | L119: 112 | M119: -5111.524137 | N119: 10351.1547 | O119: -9842.560586 | P119: -18162.2817 | R119: -155327 | S119: -283877 | T119: -105647 | U119: -78023
A120: 113 | G120: =NR_to_Cash!C$9 -> -155327 | H120: =NR_to_Cash!D$9 -> -283877 | I120: =NR_to_Cash!E$9 -> -105647 | J120: =NR_to_Cash!F$9 -> -78023 | L120: 113 | M120: -18816.59715 | N120: 10980.08947 | O120: -14874.73613 | P120: -17678.01835 | R120: -155327 | S120: -283877 | T120: -105647 | U120: -78023
A121: 114 | G121: =NR_to_Cash!C$9 -> -155327 | H121: =NR_to_Cash!D$9 -> -283877 | I121: =NR_to_Cash!E$9 -> -105647 | J121: =NR_to_Cash!F$9 -> -78023 | L121: 114 | M121: 1456.615959 | N121: -12526.58109 | O121: -1394.870191 | P121: -14574.68826 | R121: -155327 | S121: -283877 | T121: -105647 | U121: -78023
A122: 115 | G122: =NR_to_Cash!C$9 -> -155327 | H122: =NR_to_Cash!D$9 -> -283877 | I122: =NR_to_Cash!E$9 -> -105647 | J122: =NR_to_Cash!F$9 -> -78023 | L122: 115 | M122: -27272.9722 | N122: -9773.386425 | O122: -9373.299709 | P122: -6494.566428 | R122: -155327 | S122: -283877 | T122: -105647 | U122: -78023
A123: 116 | G123: =NR_to_Cash!C$9 -> -155327 | H123: =NR_to_Cash!D$9 -> -283877 | I123: =NR_to_Cash!E$9 -> -105647 | J123: =NR_to_Cash!F$9 -> -78023 | L123: 116 | M123: -14014.56083 | N123: -3703.399432 | O123: -10631.03955 | P123: -12210.84534 | R123: -155327 | S123: -283877 | T123: -105647 | U123: -78023
A124: 117 | G124: =NR_to_Cash!C$9 -> -155327 | H124: =NR_to_Cash!D$9 -> -283877 | I124: =NR_to_Cash!E$9 -> -105647 | J124: =NR_to_Cash!F$9 -> -78023 | L124: 117 | M124: -23225.53502 | N124: -22618.86001 | O124: -25856.95424 | P124: 4710.75964 | R124: -155327 | S124: -283877 | T124: -105647 | U124: -78023
A125: 118 | G125: =NR_to_Cash!C$9 -> -155327 | H125: =NR_to_Cash!D$9 -> -283877 | I125: =NR_to_Cash!E$9 -> -105647 | J125: =NR_to_Cash!F$9 -> -78023 | L125: 118 | M125: -19315.36443 | N125: -5331.617336 | O125: -22801.11303 | P125: -6102.263751 | R125: -155327 | S125: -283877 | T125: -105647 | U125: -78023
A126: 119 | G126: =NR_to_Cash!C$9 -> -155327 | H126: =NR_to_Cash!D$9 -> -283877 | I126: =NR_to_Cash!E$9 -> -105647 | J126: =NR_to_Cash!F$9 -> -78023 | L126: 119 | M126: -2571.14019 | N126: 431.7399801 | O126: -2845.188866 | P126: -20463.36446 | R126: -155327 | S126: -283877 | T126: -105647 | U126: -78023
A127: 120 | G127: =NR_to_Cash!C$9 -> -155327 | H127: =NR_to_Cash!D$9 -> -283877 | I127: =NR_to_Cash!E$9 -> -105647 | J127: =NR_to_Cash!F$9 -> -78023 | L127: 120 | M127: -32093.87014 | N127: -19883.03156 | O127: -16567.92191 | P127: -16273.42671 | R127: -155327 | S127: -283877 | T127: -105647 | U127: -78023
A128: 121 | G128: =NR_to_Cash!C$9 -> -155327 | H128: =NR_to_Cash!D$9 -> -283877 | I128: =NR_to_Cash!E$9 -> -105647 | J128: =NR_to_Cash!F$9 -> -78023 | L128: 121 | M128: -28522.433 | N128: -8356.805778 | O128: -12017.42935 | P128: -26600.29726 | R128: -155327 | S128: -283877 | T128: -105647 | U128: -78023
A129: 122 | G129: =NR_to_Cash!C$9 -> -155327 | H129: =NR_to_Cash!D$9 -> -283877 | I129: =NR_to_Cash!E$9 -> -105647 | J129: =NR_to_Cash!F$9 -> -78023 | L129: 122 | M129: -26107.76545 | N129: -18374.7733 | O129: -13212.22999 | P129: -24723.90692 | R129: -155327 | S129: -283877 | T129: -105647 | U129: -78023
A130: 123 | G130: =NR_to_Cash!C$9 -> -155327 | H130: =NR_to_Cash!D$9 -> -283877 | I130: =NR_to_Cash!E$9 -> -105647 | J130: =NR_to_Cash!F$9 -> -78023 | L130: 123 | M130: 9747.601027 | N130: 441.5289998 | O130: -15144.43543 | P130: -9125.822398 | R130: -155327 | S130: -283877 | T130: -105647 | U130: -78023
A131: 124 | G131: =NR_to_Cash!C$9 -> -155327 | H131: =NR_to_Cash!D$9 -> -283877 | I131: =NR_to_Cash!E$9 -> -105647 | J131: =NR_to_Cash!F$9 -> -78023 | L131: 124 | M131: -10745.4975 | N131: 3833.220189 | O131: -20874.10715 | P131: -21571.42927 | R131: -155327 | S131: -283877 | T131: -105647 | U131: -78023
A132: 125 | G132: =NR_to_Cash!C$9 -> -155327 | H132: =NR_to_Cash!D$9 -> -283877 | I132: =NR_to_Cash!E$9 -> -105647 | J132: =NR_to_Cash!F$9 -> -78023 | L132: 125 | M132: -16699.92555 | N132: -15480.41002 | O132: -28552.10536 | P132: 4997.915223 | R132: -155327 | S132: -283877 | T132: -105647 | U132: -78023
A133: 126 | G133: =NR_to_Cash!C$9 -> -155327 | H133: =NR_to_Cash!D$9 -> -283877 | I133: =NR_to_Cash!E$9 -> -105647 | J133: =NR_to_Cash!F$9 -> -78023 | L133: 126 | M133: -12216.45971 | N133: -47.67658556 | O133: 7946.155071 | P133: -16626.46121 | R133: -155327 | S133: -283877 | T133: -105647 | U133: -78023
A134: 127 | G134: =NR_to_Cash!C$9 -> -155327 | H134: =NR_to_Cash!D$9 -> -283877 | I134: =NR_to_Cash!E$9 -> -105647 | J134: =NR_to_Cash!F$9 -> -78023 | L134: 127 | M134: -33826.89269 | N134: -30101.55639 | O134: -11653.25877 | P134: 732.0581749 | R134: -155327 | S134: -283877 | T134: -105647 | U134: -78023
A135: 128 | G135: =NR_to_Cash!C$9 -> -155327 | H135: =NR_to_Cash!D$9 -> -283877 | I135: =NR_to_Cash!E$9 -> -105647 | J135: =NR_to_Cash!F$9 -> -78023 | L135: 128 | M135: -5932.096905 | N135: -25836.61995 | O135: 4120.732922 | P135: 5714.382896 | R135: -155327 | S135: -283877 | T135: -105647 | U135: -78023
A136: 129 | G136: =NR_to_Cash!C$9 -> -155327 | H136: =NR_to_Cash!D$9 -> -283877 | I136: =NR_to_Cash!E$9 -> -105647 | J136: =NR_to_Cash!F$9 -> -78023 | L136: 129 | M136: -27240.68774 | N136: -21490.44034 | O136: -15449.50264 | P136: -21246.30826 | R136: -155327 | S136: -283877 | T136: -105647 | U136: -78023
A137: 130 | G137: =NR_to_Cash!C$9 -> -155327 | H137: =NR_to_Cash!D$9 -> -283877 | I137: =NR_to_Cash!E$9 -> -105647 | J137: =NR_to_Cash!F$9 -> -78023 | L137: 130 | M137: -8949.321955 | N137: -24031.84803 | O137: -16502.04552 | P137: 8821.381979 | R137: -155327 | S137: -283877 | T137: -105647 | U137: -78023
A138: 131 | G138: =NR_to_Cash!C$9 -> -155327 | H138: =NR_to_Cash!D$9 -> -283877 | I138: =NR_to_Cash!E$9 -> -105647 | J138: =NR_to_Cash!F$9 -> -78023 | L138: 131 | M138: -23361.38667 | N138: -21558.27628 | O138: -15528.75378 | P138: 1199.014666 | R138: -155327 | S138: -283877 | T138: -105647 | U138: -78023
A139: 132 | G139: =NR_to_Cash!C$9 -> -155327 | H139: =NR_to_Cash!D$9 -> -283877 | I139: =NR_to_Cash!E$9 -> -105647 | J139: =NR_to_Cash!F$9 -> -78023 | L139: 132 | M139: -12951.9469 | N139: -11761.01509 | O139: -4727.449175 | P139: 8335.475057 | R139: -155327 | S139: -283877 | T139: -105647 | U139: -78023
A140: 133 | G140: =NR_to_Cash!C$9 -> -155327 | H140: =NR_to_Cash!D$9 -> -283877 | I140: =NR_to_Cash!E$9 -> -105647 | J140: =NR_to_Cash!F$9 -> -78023 | L140: 133 | M140: -2125.964251 | N140: 5375.822279 | O140: -19335.48315 | P140: -4307.888604 | R140: -155327 | S140: -283877 | T140: -105647 | U140: -78023
A141: 134 | G141: =NR_to_Cash!C$9 -> -155327 | H141: =NR_to_Cash!D$9 -> -283877 | I141: =NR_to_Cash!E$9 -> -105647 | J141: =NR_to_Cash!F$9 -> -78023 | L141: 134 | M141: -11875.23619 | N141: -23304.64123 | O141: -13252.5347 | P141: -16663.00263 | R141: -155327 | S141: -283877 | T141: -105647 | U141: -78023
A142: 135 | G142: =NR_to_Cash!C$9 -> -155327 | H142: =NR_to_Cash!D$9 -> -283877 | I142: =NR_to_Cash!E$9 -> -105647 | J142: =NR_to_Cash!F$9 -> -78023 | L142: 135 | M142: -18730.62348 | N142: -12467.14289 | O142: 5541.263817 | P142: -31489.71907 | R142: -155327 | S142: -283877 | T142: -105647 | U142: -78023
A143: 136 | G143: =NR_to_Cash!C$9 -> -155327 | H143: =NR_to_Cash!D$9 -> -283877 | I143: =NR_to_Cash!E$9 -> -105647 | J143: =NR_to_Cash!F$9 -> -78023 | L143: 136 | M143: -859.5038141 | N143: -27424.17477 | O143: -10701.17625 | P143: -1771.568189 | R143: -155327 | S143: -283877 | T143: -105647 | U143: -78023
A144: 137 | G144: =NR_to_Cash!C$9 -> -155327 | H144: =NR_to_Cash!D$9 -> -283877 | I144: =NR_to_Cash!E$9 -> -105647 | J144: =NR_to_Cash!F$9 -> -78023 | L144: 137 | M144: -19759.60611 | N144: 6459.554824 | O144: -1338.136365 | P144: 195.6220182 | R144: -155327 | S144: -283877 | T144: -105647 | U144: -78023
A145: 138 | G145: =NR_to_Cash!C$9 -> -155327 | H145: =NR_to_Cash!D$9 -> -283877 | I145: =NR_to_Cash!E$9 -> -105647 | J145: =NR_to_Cash!F$9 -> -78023 | L145: 138 | M145: -7171.823094 | N145: -15824.54035 | O145: -10846.99972 | P145: 6978.524005 | R145: -155327 | S145: -283877 | T145: -105647 | U145: -78023
A146: 139 | G146: =NR_to_Cash!C$9 -> -155327 | H146: =NR_to_Cash!D$9 -> -283877 | I146: =NR_to_Cash!E$9 -> -105647 | J146: =NR_to_Cash!F$9 -> -78023 | L146: 139 | M146: -3744.470567 | N146: -8469.985859 | O146: -7970.514317 | P146: -15588.06434 | R146: -155327 | S146: -283877 | T146: -105647 | U146: -78023
A147: 140 | G147: =NR_to_Cash!C$9 -> -155327 | H147: =NR_to_Cash!D$9 -> -283877 | I147: =NR_to_Cash!E$9 -> -105647 | J147: =NR_to_Cash!F$9 -> -78023 | L147: 140 | M147: -12359.72743 | N147: 11684.1932 | O147: 6289.762459 | P147: -26197.18701 | R147: -155327 | S147: -283877 | T147: -105647 | U147: -78023
A148: 141 | G148: =NR_to_Cash!C$9 -> -155327 | H148: =NR_to_Cash!D$9 -> -283877 | I148: =NR_to_Cash!E$9 -> -105647 | J148: =NR_to_Cash!F$9 -> -78023 | L148: 141 | M148: -20267.73099 | N148: -11108.53924 | O148: -4290.795004 | P148: 2583.646858 | R148: -155327 | S148: -283877 | T148: -105647 | U148: -78023
A149: 142 | G149: =NR_to_Cash!C$9 -> -155327 | H149: =NR_to_Cash!D$9 -> -283877 | I149: =NR_to_Cash!E$9 -> -105647 | J149: =NR_to_Cash!F$9 -> -78023 | L149: 142 | M149: -5826.543388 | N149: 5683.958963 | O149: -9420.639785 | P149: -26738.98337 | R149: -155327 | S149: -283877 | T149: -105647 | U149: -78023
A150: 143 | G150: =NR_to_Cash!C$9 -> -155327 | H150: =NR_to_Cash!D$9 -> -283877 | I150: =NR_to_Cash!E$9 -> -105647 | J150: =NR_to_Cash!F$9 -> -78023 | L150: 143 | M150: -13173.64175 | N150: -19316.66561 | O150: -15067.04273 | P150: 8988.606306 | R150: -155327 | S150: -283877 | T150: -105647 | U150: -78023
A151: 144 | G151: =NR_to_Cash!C$9 -> -155327 | H151: =NR_to_Cash!D$9 -> -283877 | I151: =NR_to_Cash!E$9 -> -105647 | J151: =NR_to_Cash!F$9 -> -78023 | L151: 144 | M151: -12261.86863 | N151: 7829.46273 | O151: -26444.46316 | P151: -24478.15805 | R151: -155327 | S151: -283877 | T151: -105647 | U151: -78023
A152: 145 | G152: =NR_to_Cash!C$9 -> -155327 | H152: =NR_to_Cash!D$9 -> -283877 | I152: =NR_to_Cash!E$9 -> -105647 | J152: =NR_to_Cash!F$9 -> -78023 | L152: 145 | M152: -12131.02491 | N152: -8107.642111 | O152: -13325.35301 | P152: -33016.57399 | R152: -155327 | S152: -283877 | T152: -105647 | U152: -78023
A153: 146 | G153: =NR_to_Cash!C$9 -> -155327 | H153: =NR_to_Cash!D$9 -> -283877 | I153: =NR_to_Cash!E$9 -> -105647 | J153: =NR_to_Cash!F$9 -> -78023 | L153: 146 | M153: 5003.630925 | N153: -41122.15957 | O153: -23378.05827 | P153: -14028.20929 | R153: -155327 | S153: -283877 | T153: -105647 | U153: -78023
A154: 147 | G154: =NR_to_Cash!C$9 -> -155327 | H154: =NR_to_Cash!D$9 -> -283877 | I154: =NR_to_Cash!E$9 -> -105647 | J154: =NR_to_Cash!F$9 -> -78023 | L154: 147 | M154: -11683.66304 | N154: 4874.591536 | O154: -2816.432411 | P154: -7434.010952 | R154: -155327 | S154: -283877 | T154: -105647 | U154: -78023
A155: 148 | G155: =NR_to_Cash!C$9 -> -155327 | H155: =NR_to_Cash!D$9 -> -283877 | I155: =NR_to_Cash!E$9 -> -105647 | J155: =NR_to_Cash!F$9 -> -78023 | L155: 148 | M155: -3759.835598 | N155: -4520.14636 | O155: -30733.96207 | P155: -10787.7188 | R155: -155327 | S155: -283877 | T155: -105647 | U155: -78023
A156: 149 | G156: =NR_to_Cash!C$9 -> -155327 | H156: =NR_to_Cash!D$9 -> -283877 | I156: =NR_to_Cash!E$9 -> -105647 | J156: =NR_to_Cash!F$9 -> -78023 | L156: 149 | M156: -20613.62616 | N156: 1873.661427 | O156: 832.2935917 | P156: -3910.000417 | R156: -155327 | S156: -283877 | T156: -105647 | U156: -78023
A157: 150 | G157: =NR_to_Cash!C$9 -> -155327 | H157: =NR_to_Cash!D$9 -> -283877 | I157: =NR_to_Cash!E$9 -> -105647 | J157: =NR_to_Cash!F$9 -> -78023 | L157: 150 | M157: -27586.50054 | N157: 3893.590736 | O157: -8311.27482 | P157: -13414.05875 | R157: -155327 | S157: -283877 | T157: -105647 | U157: -78023
A158: 151 | G158: =NR_to_Cash!C$9 -> -155327 | H158: =NR_to_Cash!D$9 -> -283877 | I158: =NR_to_Cash!E$9 -> -105647 | J158: =NR_to_Cash!F$9 -> -78023 | L158: 151 | M158: -3078.232575 | N158: -14190.12779 | O158: -27137.97606 | P158: -19680.46344 | R158: -155327 | S158: -283877 | T158: -105647 | U158: -78023
A159: 152 | G159: =NR_to_Cash!C$9 -> -155327 | H159: =NR_to_Cash!D$9 -> -283877 | I159: =NR_to_Cash!E$9 -> -105647 | J159: =NR_to_Cash!F$9 -> -78023 | L159: 152 | M159: -7081.109971 | N159: -28346.02393 | O159: -18850.24138 | P159: -6842.175466 | R159: -155327 | S159: -283877 | T159: -105647 | U159: -78023
A160: 153 | G160: =NR_to_Cash!C$9 -> -155327 | H160: =NR_to_Cash!D$9 -> -283877 | I160: =NR_to_Cash!E$9 -> -105647 | J160: =NR_to_Cash!F$9 -> -78023 | L160: 153 | M160: 12006.6161 | N160: 5260.436844 | O160: 10658.69702 | P160: 4869.468428 | R160: -155327 | S160: -283877 | T160: -105647 | U160: -78023
A161: 154 | G161: =NR_to_Cash!C$9 -> -155327 | H161: =NR_to_Cash!D$9 -> -283877 | I161: =NR_to_Cash!E$9 -> -105647 | J161: =NR_to_Cash!F$9 -> -78023 | L161: 154 | M161: -5186.717344 | N161: -27407.94643 | O161: -12606.91973 | P161: 2846.61604 | R161: -155327 | S161: -283877 | T161: -105647 | U161: -78023
A162: 155 | G162: =NR_to_Cash!C$9 -> -155327 | H162: =NR_to_Cash!D$9 -> -283877 | I162: =NR_to_Cash!E$9 -> -105647 | J162: =NR_to_Cash!F$9 -> -78023 | L162: 155 | M162: -23277.25418 | N162: -21429.11285 | O162: -8936.618283 | P162: -11818.60984 | R162: -155327 | S162: -283877 | T162: -105647 | U162: -78023
A163: 156 | G163: =NR_to_Cash!C$9 -> -155327 | H163: =NR_to_Cash!D$9 -> -283877 | I163: =NR_to_Cash!E$9 -> -105647 | J163: =NR_to_Cash!F$9 -> -78023 | L163: 156 | M163: -14228.00272 | N163: -21089.14515 | O163: 8897.463034 | P163: -24821.35528 | R163: -155327 | S163: -283877 | T163: -105647 | U163: -78023
A164: 157 | G164: =NR_to_Cash!C$9 -> -155327 | H164: =NR_to_Cash!D$9 -> -283877 | I164: =NR_to_Cash!E$9 -> -105647 | J164: =NR_to_Cash!F$9 -> -78023 | L164: 157 | M164: -8871.930463 | N164: 579.5884794 | O164: -16245.89601 | P164: -5414.188854 | R164: -155327 | S164: -283877 | T164: -105647 | U164: -78023
A165: 158 | G165: =NR_to_Cash!C$9 -> -155327 | H165: =NR_to_Cash!D$9 -> -283877 | I165: =NR_to_Cash!E$9 -> -105647 | J165: =NR_to_Cash!F$9 -> -78023 | L165: 158 | M165: -11356.43863 | N165: 2438.662682 | O165: 202.6439101 | P165: -13331.67878 | R165: -155327 | S165: -283877 | T165: -105647 | U165: -78023
A166: 159 | G166: =NR_to_Cash!C$9 -> -155327 | H166: =NR_to_Cash!D$9 -> -283877 | I166: =NR_to_Cash!E$9 -> -105647 | J166: =NR_to_Cash!F$9 -> -78023 | L166: 159 | M166: -43514.99902 | N166: 3027.821951 | O166: 2503.064453 | P166: 16409.68422 | R166: -155327 | S166: -283877 | T166: -105647 | U166: -78023
A167: 160 | G167: =NR_to_Cash!C$9 -> -155327 | H167: =NR_to_Cash!D$9 -> -283877 | I167: =NR_to_Cash!E$9 -> -105647 | J167: =NR_to_Cash!F$9 -> -78023 | L167: 160 | M167: -6649.205322 | N167: -12874.91822 | O167: -11708.68104 | P167: -25658.88656 | R167: -155327 | S167: -283877 | T167: -105647 | U167: -78023
A168: 161 | G168: =NR_to_Cash!C$9 -> -155327 | H168: =NR_to_Cash!D$9 -> -283877 | I168: =NR_to_Cash!E$9 -> -105647 | J168: =NR_to_Cash!F$9 -> -78023 | L168: 161 | M168: -15943.62686 | N168: -4135.014028 | O168: 1439.223201 | P168: -9057.547999 | R168: -155327 | S168: -283877 | T168: -105647 | U168: -78023
A169: 162 | G169: =NR_to_Cash!C$9 -> -155327 | H169: =NR_to_Cash!D$9 -> -283877 | I169: =NR_to_Cash!E$9 -> -105647 | J169: =NR_to_Cash!F$9 -> -78023 | L169: 162 | M169: -27531.28105 | N169: 6319.662138 | O169: -15126.17958 | P169: -30215.09091 | R169: -155327 | S169: -283877 | T169: -105647 | U169: -78023
A170: 163 | G170: =NR_to_Cash!C$9 -> -155327 | H170: =NR_to_Cash!D$9 -> -283877 | I170: =NR_to_Cash!E$9 -> -105647 | J170: =NR_to_Cash!F$9 -> -78023 | L170: 163 | M170: -21025.76917 | N170: -1494.112036 | O170: -14164.15158 | P170: -19042.81669 | R170: -155327 | S170: -283877 | T170: -105647 | U170: -78023
A171: 164 | G171: =NR_to_Cash!C$9 -> -155327 | H171: =NR_to_Cash!D$9 -> -283877 | I171: =NR_to_Cash!E$9 -> -105647 | J171: =NR_to_Cash!F$9 -> -78023 | L171: 164 | M171: -23500.17235 | N171: -14793.25072 | O171: -42929.65541 | P171: -3383.497369 | R171: -155327 | S171: -283877 | T171: -105647 | U171: -78023
A172: 165 | G172: =NR_to_Cash!C$9 -> -155327 | H172: =NR_to_Cash!D$9 -> -283877 | I172: =NR_to_Cash!E$9 -> -105647 | J172: =NR_to_Cash!F$9 -> -78023 | L172: 165 | M172: -10280.01153 | N172: -26423.87165 | O172: -458.4174847 | P172: -35148.49834 | R172: -155327 | S172: -283877 | T172: -105647 | U172: -78023
A173: 166 | G173: =NR_to_Cash!C$9 -> -155327 | H173: =NR_to_Cash!D$9 -> -283877 | I173: =NR_to_Cash!E$9 -> -105647 | J173: =NR_to_Cash!F$9 -> -78023 | L173: 166 | M173: -14943.19069 | N173: -12571.48694 | O173: -25544.6806 | P173: -13563.17596 | R173: -155327 | S173: -283877 | T173: -105647 | U173: -78023
A174: 167 | G174: =NR_to_Cash!C$9 -> -155327 | H174: =NR_to_Cash!D$9 -> -283877 | I174: =NR_to_Cash!E$9 -> -105647 | J174: =NR_to_Cash!F$9 -> -78023 | L174: 167 | M174: -22920.91107 | N174: 1956.016464 | O174: -16185.11772 | P174: -13206.15428 | R174: -155327 | S174: -283877 | T174: -105647 | U174: -78023
A175: 168 | G175: =NR_to_Cash!C$9 -> -155327 | H175: =NR_to_Cash!D$9 -> -283877 | I175: =NR_to_Cash!E$9 -> -105647 | J175: =NR_to_Cash!F$9 -> -78023 | L175: 168 | M175: -27310.59988 | N175: -11001.53054 | O175: 173.7196196 | P175: -24266.58005 | R175: -155327 | S175: -283877 | T175: -105647 | U175: -78023
A176: 169 | G176: =NR_to_Cash!C$9 -> -155327 | H176: =NR_to_Cash!D$9 -> -283877 | I176: =NR_to_Cash!E$9 -> -105647 | J176: =NR_to_Cash!F$9 -> -78023 | L176: 169 | M176: -23522.81984 | N176: -5200.970369 | O176: -26040.16949 | P176: -19185.3859 | R176: -155327 | S176: -283877 | T176: -105647 | U176: -78023
A177: 170 | G177: =NR_to_Cash!C$9 -> -155327 | H177: =NR_to_Cash!D$9 -> -283877 | I177: =NR_to_Cash!E$9 -> -105647 | J177: =NR_to_Cash!F$9 -> -78023 | L177: 170 | M177: -6932.762051 | N177: 8801.857573 | O177: 3616.398733 | P177: -16515.36378 | R177: -155327 | S177: -283877 | T177: -105647 | U177: -78023
A178: 171 | G178: =NR_to_Cash!C$9 -> -155327 | H178: =NR_to_Cash!D$9 -> -283877 | I178: =NR_to_Cash!E$9 -> -105647 | J178: =NR_to_Cash!F$9 -> -78023 | L178: 171 | M178: -5034.883133 | N178: 8141.335081 | O178: -19543.08782 | P178: -10835.99478 | R178: -155327 | S178: -283877 | T178: -105647 | U178: -78023
A179: 172 | G179: =NR_to_Cash!C$9 -> -155327 | H179: =NR_to_Cash!D$9 -> -283877 | I179: =NR_to_Cash!E$9 -> -105647 | J179: =NR_to_Cash!F$9 -> -78023 | L179: 172 | M179: -7346.61472 | N179: -9000.956658 | O179: -6034.500758 | P179: -12433.95124 | R179: -155327 | S179: -283877 | T179: -105647 | U179: -78023
A180: 173 | G180: =NR_to_Cash!C$9 -> -155327 | H180: =NR_to_Cash!D$9 -> -283877 | I180: =NR_to_Cash!E$9 -> -105647 | J180: =NR_to_Cash!F$9 -> -78023 | L180: 173 | M180: -333.0197528 | N180: -1290.430692 | O180: -8080.819348 | P180: -12838.03011 | R180: -155327 | S180: -283877 | T180: -105647 | U180: -78023
A181: 174 | G181: =NR_to_Cash!C$9 -> -155327 | H181: =NR_to_Cash!D$9 -> -283877 | I181: =NR_to_Cash!E$9 -> -105647 | J181: =NR_to_Cash!F$9 -> -78023 | L181: 174 | M181: 8205.047366 | N181: -2534.784632 | O181: -23565.60407 | P181: -8767.990263 | R181: -155327 | S181: -283877 | T181: -105647 | U181: -78023
A182: 175 | G182: =NR_to_Cash!C$9 -> -155327 | H182: =NR_to_Cash!D$9 -> -283877 | I182: =NR_to_Cash!E$9 -> -105647 | J182: =NR_to_Cash!F$9 -> -78023 | L182: 175 | M182: -18767.02912 | N182: -23057.41174 | O182: 1072.105993 | P182: 3969.327933 | R182: -155327 | S182: -283877 | T182: -105647 | U182: -78023
A183: 176 | G183: =NR_to_Cash!C$9 -> -155327 | H183: =NR_to_Cash!D$9 -> -283877 | I183: =NR_to_Cash!E$9 -> -105647 | J183: =NR_to_Cash!F$9 -> -78023 | L183: 176 | M183: -21166.35253 | N183: -12190.99227 | O183: 579.5725121 | P183: -26979.63528 | R183: -155327 | S183: -283877 | T183: -105647 | U183: -78023
A184: 177 | G184: =NR_to_Cash!C$9 -> -155327 | H184: =NR_to_Cash!D$9 -> -283877 | I184: =NR_to_Cash!E$9 -> -105647 | J184: =NR_to_Cash!F$9 -> -78023 | L184: 177 | M184: 6878.448564 | N184: -21692.13091 | O184: -5378.956282 | P184: 6880.477788 | R184: -155327 | S184: -283877 | T184: -105647 | U184: -78023
A185: 178 | G185: =NR_to_Cash!C$9 -> -155327 | H185: =NR_to_Cash!D$9 -> -283877 | I185: =NR_to_Cash!E$9 -> -105647 | J185: =NR_to_Cash!F$9 -> -78023 | L185: 178 | M185: 5279.597432 | N185: -16451.73375 | O185: -16602.95783 | P185: 29668.19172 | R185: -155327 | S185: -283877 | T185: -105647 | U185: -78023
A186: 179 | G186: =NR_to_Cash!C$9 -> -155327 | H186: =NR_to_Cash!D$9 -> -283877 | I186: =NR_to_Cash!E$9 -> -105647 | J186: =NR_to_Cash!F$9 -> -78023 | L186: 179 | M186: -20821.58583 | N186: -19433.74293 | O186: -26059.19474 | P186: -37177.90186 | R186: -155327 | S186: -283877 | T186: -105647 | U186: -78023
A187: 180 | G187: =NR_to_Cash!C$9 -> -155327 | H187: =NR_to_Cash!D$9 -> -283877 | I187: =NR_to_Cash!E$9 -> -105647 | J187: =NR_to_Cash!F$9 -> -78023 | L187: 180 | M187: -18777.86842 | N187: 9407.068377 | O187: -11977.76263 | P187: -39721.02594 | R187: -155327 | S187: -283877 | T187: -105647 | U187: -78023
A188: 181 | G188: =NR_to_Cash!C$9 -> -155327 | H188: =NR_to_Cash!D$9 -> -283877 | I188: =NR_to_Cash!E$9 -> -105647 | J188: =NR_to_Cash!F$9 -> -78023 | L188: 181 | M188: -2545.887833 | N188: -18019.45307 | O188: -1205.408165 | P188: 24884.71102 | R188: -155327 | S188: -283877 | T188: -105647 | U188: -78023
A189: 182 | G189: =NR_to_Cash!C$9 -> -155327 | H189: =NR_to_Cash!D$9 -> -283877 | I189: =NR_to_Cash!E$9 -> -105647 | J189: =NR_to_Cash!F$9 -> -78023 | L189: 182 | M189: -6544.592987 | N189: -6142.384457 | O189: -1582.433297 | P189: -20090.65365 | R189: -155327 | S189: -283877 | T189: -105647 | U189: -78023
A190: 183 | G190: =NR_to_Cash!C$9 -> -155327 | H190: =NR_to_Cash!D$9 -> -283877 | I190: =NR_to_Cash!E$9 -> -105647 | J190: =NR_to_Cash!F$9 -> -78023 | L190: 183 | M190: -12914.04959 | N190: 4760.699814 | O190: -29098.14532 | P190: 10452.4963 | R190: -155327 | S190: -283877 | T190: -105647 | U190: -78023
A191: 184 | G191: =NR_to_Cash!C$9 -> -155327 | H191: =NR_to_Cash!D$9 -> -283877 | I191: =NR_to_Cash!E$9 -> -105647 | J191: =NR_to_Cash!F$9 -> -78023 | L191: 184 | M191: -18908.32821 | N191: -13762.56184 | O191: 4898.023598 | P191: -23888.97377 | R191: -155327 | S191: -283877 | T191: -105647 | U191: -78023
A192: 185 | G192: =NR_to_Cash!C$9 -> -155327 | H192: =NR_to_Cash!D$9 -> -283877 | I192: =NR_to_Cash!E$9 -> -105647 | J192: =NR_to_Cash!F$9 -> -78023 | L192: 185 | M192: 21.83414228 | N192: -7010.679741 | O192: -22811.76608 | P192: 111.7508355 | R192: -155327 | S192: -283877 | T192: -105647 | U192: -78023
A193: 186 | G193: =NR_to_Cash!C$9 -> -155327 | H193: =NR_to_Cash!D$9 -> -283877 | I193: =NR_to_Cash!E$9 -> -105647 | J193: =NR_to_Cash!F$9 -> -78023 | L193: 186 | M193: -10470.2885 | N193: -21660.56189 | O193: -10598.22193 | P193: 12990.34717 | R193: -155327 | S193: -283877 | T193: -105647 | U193: -78023
A194: 187 | G194: =NR_to_Cash!C$9 -> -155327 | H194: =NR_to_Cash!D$9 -> -283877 | I194: =NR_to_Cash!E$9 -> -105647 | J194: =NR_to_Cash!F$9 -> -78023 | L194: 187 | M194: -28769.28618 | N194: 6524.01059 | O194: -9766.971241 | P194: -24125.04086 | R194: -155327 | S194: -283877 | T194: -105647 | U194: -78023
A195: 188 | G195: =NR_to_Cash!C$9 -> -155327 | H195: =NR_to_Cash!D$9 -> -283877 | I195: =NR_to_Cash!E$9 -> -105647 | J195: =NR_to_Cash!F$9 -> -78023 | L195: 188 | M195: -39733.31967 | N195: -20807.78693 | O195: -20048.49496 | P195: -9022.677641 | R195: -155327 | S195: -283877 | T195: -105647 | U195: -78023
A196: 189 | G196: =NR_to_Cash!C$9 -> -155327 | H196: =NR_to_Cash!D$9 -> -283877 | I196: =NR_to_Cash!E$9 -> -105647 | J196: =NR_to_Cash!F$9 -> -78023 | L196: 189 | M196: -19615.61169 | N196: -30108.72108 | O196: -1170.469474 | P196: -97.20399278 | R196: -155327 | S196: -283877 | T196: -105647 | U196: -78023
A197: 190 | G197: =NR_to_Cash!C$9 -> -155327 | H197: =NR_to_Cash!D$9 -> -283877 | I197: =NR_to_Cash!E$9 -> -105647 | J197: =NR_to_Cash!F$9 -> -78023 | L197: 190 | M197: -8729.782387 | N197: 903.1302417 | O197: 11192.09506 | P197: -9545.883928 | R197: -155327 | S197: -283877 | T197: -105647 | U197: -78023
A198: 191 | G198: =NR_to_Cash!C$9 -> -155327 | H198: =NR_to_Cash!D$9 -> -283877 | I198: =NR_to_Cash!E$9 -> -105647 | J198: =NR_to_Cash!F$9 -> -78023 | L198: 191 | M198: -18141.56571 | N198: -13586.22974 | O198: -10392.39381 | P198: 1998.884539 | R198: -155327 | S198: -283877 | T198: -105647 | U198: -78023
A199: 192 | G199: =NR_to_Cash!C$9 -> -155327 | H199: =NR_to_Cash!D$9 -> -283877 | I199: =NR_to_Cash!E$9 -> -105647 | J199: =NR_to_Cash!F$9 -> -78023 | L199: 192 | M199: -5579.702482 | N199: 15492.17938 | O199: 13929.97802 | P199: -18525.70655 | R199: -155327 | S199: -283877 | T199: -105647 | U199: -78023
A200: 193 | G200: =NR_to_Cash!C$9 -> -155327 | H200: =NR_to_Cash!D$9 -> -283877 | I200: =NR_to_Cash!E$9 -> -105647 | J200: =NR_to_Cash!F$9 -> -78023 | L200: 193 | M200: -40461.05175 | N200: -24390.70912 | O200: -2926.136361 | P200: -19528.98526 | R200: -155327 | S200: -283877 | T200: -105647 | U200: -78023
A201: 194 | G201: =NR_to_Cash!C$9 -> -155327 | H201: =NR_to_Cash!D$9 -> -283877 | I201: =NR_to_Cash!E$9 -> -105647 | J201: =NR_to_Cash!F$9 -> -78023 | L201: 194 | M201: 9896.783689 | N201: -21817.42544 | O201: -27994.16781 | P201: 3770.782502 | R201: -155327 | S201: -283877 | T201: -105647 | U201: -78023
A202: 195 | G202: =NR_to_Cash!C$9 -> -155327 | H202: =NR_to_Cash!D$9 -> -283877 | I202: =NR_to_Cash!E$9 -> -105647 | J202: =NR_to_Cash!F$9 -> -78023 | L202: 195 | M202: -14137.55825 | N202: -5123.530164 | O202: -60033.12821 | P202: -11948.34285 | R202: -155327 | S202: -283877 | T202: -105647 | U202: -78023
A203: 196 | G203: =NR_to_Cash!C$9 -> -155327 | H203: =NR_to_Cash!D$9 -> -283877 | I203: =NR_to_Cash!E$9 -> -105647 | J203: =NR_to_Cash!F$9 -> -78023 | L203: 196 | M203: -2405.678748 | N203: 167.8669495 | O203: -35510.59514 | P203: -28148.97417 | R203: -155327 | S203: -283877 | T203: -105647 | U203: -78023
A204: 197 | G204: =NR_to_Cash!C$9 -> -155327 | H204: =NR_to_Cash!D$9 -> -283877 | I204: =NR_to_Cash!E$9 -> -105647 | J204: =NR_to_Cash!F$9 -> -78023 | L204: 197 | M204: -36981.32032 | N204: -587.9231299 | O204: -13558.34818 | P204: -7210.235807 | R204: -155327 | S204: -283877 | T204: -105647 | U204: -78023
... 2509 more rows

Sheet rsklibSimData (hidden)
A1: 03a1cfec73fb56292f05a1996056ca510|1|3961937|f0c49078ef63647e571b826fcfb2fc70

Sheet Study Table
B1: A | C1: B | D1: C | E1: D | F1: E | G1: F | H1: G
B2: P-NORM Risk Summary ($000,000) | J2: Source Data
B3: Study Section | C3: Risk Title | D3: Fiscal Year | E3: Forecast | F3: 5th Percentile | G3: Mean | H3: 95th Percentile | J3: ProForma | K3: Risk
A4: 1 | B4: 4.1.2.1.1 | C4: CGS Operations and Maintenance (O&M) | D4: 2025 | E4: =J4/1000 -> 381.842341 | F4: =_xll.RiskPercentile($K4,5%)/1000 ->  | G4: =_xll.RiskMean($K4)/1000 ->  | H4: =_xll.RiskPercentile($K4,95%)/1000 ->  | J4: ='Risk Summary'!C$6 -> 381842.341 | K4: ='Risk Summary'!D$6 -> 
A5: =A4+1 -> 2 | D5: 2026 | E5: =J5/1000 -> 348.985046 | F5: =_xll.RiskPercentile($K5,5%)/1000 ->  | G5: =_xll.RiskMean($K5)/1000 ->  | H5: =_xll.RiskPercentile($K5,95%)/1000 ->  | J5: ='Risk Summary'!E$6 -> 348985.046 | K5: ='Risk Summary'!F$6 -> 
A6: =A5+1 -> 3 | D6: 2027 | E6: 413.666166 | F6: =_xll.RiskPercentile($K6,5%)/1000 ->  | G6: =_xll.RiskMean($K6)/1000 ->  | H6: =_xll.RiskPercentile($K6,95%)/1000 ->  | J6: ='Risk Summary'!G$6 -> 413666.166 | K6: ='Risk Summary'!H$6 -> 
A7: 4 | D7: 2028 | E7: 380.973514 | F7: =_xll.RiskPercentile($K7,5%)/1000 ->  | G7: =_xll.RiskMean($K7)/1000 ->  | H7: =_xll.RiskPercentile($K7,95%)/1000 ->  | J7: ='Risk Summary'!I$6 -> 380973.514 | K7: ='Risk Summary'!J$6 -> 
A8: 5 | B8: 4.1.2.1.2 | C8: U.S. Army Corps of Engineers (Corps) and Bureau of Reclamation (Reclamation) O&M | D8: =D4 -> 2025 | E8: 459.05203 | F8: =_xll.RiskPercentile($K8,5%)/1000 ->  | G8: =_xll.RiskMean($K8)/1000 ->  | H8: =_xll.RiskPercentile($K8,95%)/1000 ->  | J8: ='Risk Summary'!C$7+'Risk Summary'!C$8 -> 459052.03 | K8: ='Risk Summary'!D$7+'Risk Summary'!D$8 -> 
A9: 6 | D9: =D5 -> 2026 | E9: =J9/1000 -> 487.5860001 | F9: =_xll.RiskPercentile($K9,5%)/1000 ->  | G9: =_xll.RiskMean($K9)/1000 ->  | H9: =_xll.RiskPercentile($K9,95%)/1000 ->  | J9: ='Risk Summary'!E$7+'Risk Summary'!E$8 -> 487586.0001 | K9: ='Risk Summary'!F$7+'Risk Summary'!F$8 -> 
A10: 7 | D10: 2027 | E10: 523.0390001 | F10: =_xll.RiskPercentile($K10,5%)/1000 ->  | G10: =_xll.RiskMean($K10)/1000 ->  | H10: =_xll.RiskPercentile($K10,95%)/1000 ->  | J10: ='Risk Summary'!G$7+'Risk Summary'!G$8 -> 523039.0001 | K10: ='Risk Summary'!H$7+'Risk Summary'!H$8 -> 
A11: 8 | D11: 2028 | E11: 549.1290001 | F11: =_xll.RiskPercentile($K11,5%)/1000 ->  | G11: =_xll.RiskMean($K11)/1000 ->  | H11: =_xll.RiskPercentile($K11,95%)/1000 ->  | J11: ='Risk Summary'!I$7+'Risk Summary'!I$8 -> 549129.0001 | K11: ='Risk Summary'!J$7+'Risk Summary'!J$8 -> 
A12: 9 | B12: 4.1.2.1.3 | C12: Conservation Expense | D12: 2025 | E12: 75.03224901 | F12: =_xll.RiskPercentile($K12,5%)/1000 ->  | G12: =_xll.RiskMean($K12)/1000 ->  | H12: =_xll.RiskPercentile($K12,95%)/1000 ->  | J12: ='Risk Summary'!C$9+'Risk Summary'!C$10 -> 75032.24901 | K12: ='Risk Summary'!D$9+'Risk Summary'!D$10 -> 
A13: 10 | D13: 2026 | E13: =J13/1000 -> 71.38952401 | F13: =_xll.RiskPercentile($K13,5%)/1000 ->  | G13: =_xll.RiskMean($K13)/1000 ->  | H13: =_xll.RiskPercentile($K13,95%)/1000 ->  | J13: ='Risk Summary'!E$9+'Risk Summary'!E$10 -> 71389.52401 | K13: ='Risk Summary'!F$9+'Risk Summary'!F$10 -> 
A14: 11 | D14: 2027 | E14: 71.38952401 | F14: =_xll.RiskPercentile($K14,5%)/1000 ->  | G14: =_xll.RiskMean($K14)/1000 ->  | H14: =_xll.RiskPercentile($K14,95%)/1000 ->  | J14: ='Risk Summary'!G$9+'Risk Summary'!G$10 -> 71389.52401 | K14: ='Risk Summary'!H$9+'Risk Summary'!H$10 -> 
A15: 12 | D15: 2028 | E15: 92.517699 | F15: =_xll.RiskPercentile($K15,5%)/1000 ->  | G15: =_xll.RiskMean($K15)/1000 ->  | H15: =_xll.RiskPercentile($K15,95%)/1000 ->  | J15: ='Risk Summary'!I$9+'Risk Summary'!I$10 -> 92517.699 | K15: ='Risk Summary'!J$9+'Risk Summary'!J$10 -> 
A16: 13 | B16: 4.1.2.1.4 | C16: Power Services Transmission Acquisition and Ancillary Services | D16: 2025 | E16: 95.89779899 | F16: =_xll.RiskPercentile($K16,5%)/1000 ->  | G16: =_xll.RiskMean($K16)/1000 ->  | H16: =_xll.RiskPercentile($K16,95%)/1000 ->  | J16: ='Risk Summary'!C$11+'Risk Summary'!C$12 -> 95897.79899 | K16: ='Risk Summary'!D$11+'Risk Summary'!D$12 -> 
A17: 14 | D17: 2026 | E17: =J17/1000 -> 95.89779999 | F17: =_xll.RiskPercentile($K17,5%)/1000 ->  | G17: =_xll.RiskMean($K17)/1000 ->  | H17: =_xll.RiskPercentile($K17,95%)/1000 ->  | J17: ='Risk Summary'!E$11+'Risk Summary'!E$12 -> 95897.79999 | K17: ='Risk Summary'!F$11+'Risk Summary'!F$12 -> 
A18: 15 | D18: 2027 | E18: 97.9443 | F18: =_xll.RiskPercentile($K18,5%)/1000 ->  | G18: =_xll.RiskMean($K18)/1000 ->  | H18: =_xll.RiskPercentile($K18,95%)/1000 ->  | J18: ='Risk Summary'!G$11+'Risk Summary'!G$12 -> 97944.3 | K18: ='Risk Summary'!H$11+'Risk Summary'!H$12 -> 
A19: 16 | D19: 2028 | E19: 100.036 | F19: =_xll.RiskPercentile($K19,5%)/1000 ->  | G19: =_xll.RiskMean($K19)/1000 ->  | H19: =_xll.RiskPercentile($K19,95%)/1000 ->  | J19: ='Risk Summary'!I$11+'Risk Summary'!I$12 -> 100036 | K19: ='Risk Summary'!J$11+'Risk Summary'!J$12 -> 
A20: 17 | B20: 4.1.2.1.5 | C20: Fish & Wildlife Expenses | D20: 2025 | E20: =J20/1000 -> 297.6262313 | F20: =_xll.RiskPercentile($K20,5%)/1000 ->  | G20: =_xll.RiskMean($K20)/1000 ->  | H20: =_xll.RiskPercentile($K20,95%)/1000 ->  | J20: ='Risk Summary'!C$13+'Risk Summary'!C$14 -> 297626.2313 | K20: ='Risk Summary'!D$13+'Risk Summary'!D$14 -> 
A21: 18 | D21: 2026 | E21: 309.2611174 | F21: =_xll.RiskPercentile($K21,5%)/1000 ->  | G21: =_xll.RiskMean($K21)/1000 ->  | H21: =_xll.RiskPercentile($K21,95%)/1000 ->  | J21: ='Risk Summary'!E$13+'Risk Summary'!E$14 -> 309261.1174 | K21: ='Risk Summary'!F$13+'Risk Summary'!F$14 -> 
A22: 19 | D22: 2027 | E22: 317.1908464 | F22: =_xll.RiskPercentile($K22,5%)/1000 ->  | G22: =_xll.RiskMean($K22)/1000 ->  | H22: =_xll.RiskPercentile($K22,95%)/1000 ->  | J22: ='Risk Summary'!G$13+'Risk Summary'!G$14 -> 317190.8464 | K22: ='Risk Summary'!H$13+'Risk Summary'!H$14 -> 
A23: 20 | D23: 2028 | E23: 325.1735812 | F23: =_xll.RiskPercentile($K23,5%)/1000 ->  | G23: =_xll.RiskMean($K23)/1000 ->  | H23: =_xll.RiskPercentile($K23,95%)/1000 ->  | J23: ='Risk Summary'!I$13+'Risk Summary'!I$14 -> 325173.5812 | K23: ='Risk Summary'!J$13+'Risk Summary'!J$14 -> 
A24: 21 | B24: 4.1.2.1.6 | C24: Interest Expense and Earnings Risk | D24: 2025 | E24: 183.9240678 | F24: =_xll.RiskPercentile($K24,5%)/1000 ->  | G24: =_xll.RiskMean($K24)/1000 ->  | H24: =_xll.RiskPercentile($K24,95%)/1000 ->  | J24: ='Risk Summary'!C$15+'Risk Summary'!C$16 -> 183924.0678 | K24: ='Risk Summary'!D$15+'Risk Summary'!D$16 -> 
A25: 22 | D25: 2026 | E25: 214.4854064 | F25: =_xll.RiskPercentile($K25,5%)/1000 ->  | G25: =_xll.RiskMean($K25)/1000 ->  | H25: =_xll.RiskPercentile($K25,95%)/1000 ->  | J25: ='Risk Summary'!E$15+'Risk Summary'!E$16 -> 214485.4064 | K25: ='Risk Summary'!F$15+'Risk Summary'!F$16 -> 
A26: 23 | D26: 2027 | E26: 220.4005583 | F26: =_xll.RiskPercentile($K26,5%)/1000 ->  | G26: =_xll.RiskMean($K26)/1000 ->  | H26: =_xll.RiskPercentile($K26,95%)/1000 ->  | J26: ='Risk Summary'!G$15+'Risk Summary'!G$16 -> 220400.5583 | K26: ='Risk Summary'!H$15+'Risk Summary'!H$16 -> 
A27: 24 | D27: 2028 | E27: 222.419892 | F27: =_xll.RiskPercentile($K27,5%)/1000 ->  | G27: =_xll.RiskMean($K27)/1000 ->  | H27: =_xll.RiskPercentile($K27,95%)/1000 ->  | J27: ='Risk Summary'!I$15+'Risk Summary'!I$16 -> 222419.892 | K27: ='Risk Summary'!J$15+'Risk Summary'!J$16 -> 
B30: A | C30: B | D30: C | E30: D | F30: E | G30: F | H30: G
B31: P-NORM Risk Summary ($000,000)
B32: Study Section | C32: Risk Title | D32: Fiscal Year | E32: Forecast | F32: 5th Percentile | G32: Mean | H32: 95th Percentile
A33: 1 | B33: 4.1.2.1.1 | C33: CGS Operations and Maintenance (O&M) | D33: 2025 | E33: 381.842341 | F33: 369.3428203 | G33: 380.5706663 | H33: 392.791698
A34: 2 | D34: 2026 | E34: 348.985046 | F34: 337.5035342 | G34: 347.6036171 | H34: 358.7508685
A35: 3 | D35: 2027 | E35: 413.666166 | F35: 400.1540942 | G35: 412.4999743 | H35: 425.8276218
A36: 4 | D36: 2028 | E36: 380.973514 | F36: 368.4341231 | G36: 379.6974288 | H36: 391.860016
A37: 5 | B37: 4.1.2.1.2 | C37: U.S. Army Corps of Engineers (Corps) and Bureau of Reclamation (Reclamation) O&M | D37: 2025 | E37: 459.05203 | F37: 459.05203 | G37: 460.8001782 | H37: 465.05203
A38: 6 | D38: 2026 | E38: 487.5860001 | F38: 487.5860001 | G38: 489.3360001 | H38: 493.5860001
A39: 7 | D39: 2027 | E39: 523.0390001 | F39: 523.0390001 | G39: 524.7871482 | H39: 529.0390001
A40: 8 | D40: 2028 | E40: 549.1290001 | F40: 549.1290001 | G40: 550.8790001 | H40: 555.1290001
A41: 9 | B41: 4.1.2.1.3 | C41: Conservation Expense | D41: 2025 | E41: 75.03224901 | F41: 71.10154026 | G41: 74.4570058 | H41: 77.35737968
A42: 10 | D42: 2026 | E42: 71.38952401 | F42: 67.67661426 | G42: 70.84468156 | H42: 73.59169042
A43: 11 | D43: 2027 | E43: 71.38952401 | F43: 67.67026973 | G43: 70.84471357 | H43: 73.58086228
A44: 12 | D44: 2028 | E44: 92.517699 | F44: 87.60715193 | G44: 91.79676872 | H44: 95.48068056
A45: 13 | B45: 4.1.2.1.4 | C45: Power Services Transmission Acquisition and Ancillary Services | D45: 2025 | E45: 95.89779899 | F45: 93.81185535 | G45: 95.61659446 | H45: 97.16218186
A46: 14 | D46: 2026 | E46: 95.89779999 | F46: 93.86181212 | G46: 95.64547744 | H46: 97.2024813
A47: 15 | D47: 2027 | E47: 97.9443 | F47: 95.76515507 | G47: 97.87322859 | H47: 99.85349065
A48: 16 | D48: 2028 | E48: 100.036 | F48: 97.76712449 | G48: 99.96148958 | H48: 101.9967616
A49: 17 | B49: 4.1.2.1.5 | C49: Fish & Wildlife Expenses | D49: 2025 | E49: 297.6262313 | F49: 290.7926001 | G49: 298.9949823 | H49: 307.2235133
A50: 18 | D50: 2026 | E50: 309.2611174 | F50: 296.3074946 | G50: 300.7052428 | H50: 305.1273593
A51: 19 | D51: 2027 | E51: 317.1908464 | F51: 303.8626891 | G51: 308.4134268 | H51: 312.9896739
A52: 20 | D52: 2028 | E52: 325.1735812 | F52: 311.5895717 | G52: 316.1724666 | H52: 320.7229395
A53: 21 | B53: 4.1.2.1.6 | C53: Interest Expense and Earnings Risk | D53: 2025 | E53: 183.9240678 | F53: 185.3835085 | G53: 200.2981818 | H53: 215.2349681
A54: 22 | D54: 2026 | E54: 214.4854064 | F54: 216.1786542 | G54: 234.5432282 | H54: 252.9116898
A55: 23 | D55: 2027 | E55: 220.4005583 | F55: 221.2004724 | G55: 240.5741741 | H55: 259.4938234
A56: 24 | D56: 2028 | E56: 222.419892 | F56: 223.7266501 | G56: 243.400813 | H56: 263.4924458

Sheet Reference
A3: Tab Color Coding
A4: Pro Forma and Accrual to Cash
A5: Sumary Sheet (Aggregation of Pro Forma, ATC, and Risk Models)
A6: Expense Model
A7: Output
A8: Other
A10: Cell Color Coding
A11: SME Input
A12: Worksheet Formula
A13: @Risk Output
A14: Linked to Summary
A15: @Risk Formula
